Workbook

Sheet Приложение
Q1: " ПРИЛОЖЕНИЕ № 1
Q3: к государственной программе Забайкальского края
B4: Основные мероприятия, мероприятия, показатели и объемы финансирования государственной программы Забайкальского края "Экономическое развитие" | Q4: "Экономическое развитие"
A6: № | B6: Наименование целей, задач, подпрограмм, основных мероприятий, мероприятий, ведомственных целевых программ, показателей | C6: Единица измерения показателя | D6: Коэффициент значимости | E6: Методика расчета показателя | F6: Сроки реализации, годы | G6: Ответственный исполнитель и соисполнители | H6: Коды бюджетной классификации расходов | K6: Значения по годам реализации
H7: Главный раздел, подраздел | I7: Целевая статья | J7: Вид расходов | K7: 2012 | L7: 2013 | M7: 2014 | N7: 2015 | O7: 2016 | P7: 2017 | Q7: 2018 | R7: 2019 | S7: 2020 | T7: 2021 | U7: 2022 | V7: 2023 | W7: 2024 | X7: 2025 | Y7: 2026 | Z7: Итого
A8: гр.1 | B8: гр.2 | C8: гр.3 | D8: гр.4 | E8: гр.5 | F8: гр.6 | G8: гр.7 | H8: гр.8 | I8: гр.9 | J8: гр.10 | K8: гр.11 | L8: гр.12 | M8: гр.13 | N8: гр.14 | O8: гр.15 | P8: гр.16 | Q8: гр.17 | R8: гр.18 | S8: гр.19 | T8: гр.20 | U8: гр.21 | V8: гр.22 | W8: гр.23 | X8: гр.24 | Y8: гр.25 | Z8: гр.26
B10: Цель "Создание условий для устойчивого роста экономики Забайкальского края" | M10: =M11+M18 -> 321642.5934 | N10: 620902.9456 | O10: 367178.5908 | P10: 336748.117 | Q10: 440092.3492 | R10: 1151767.58 | S10: 601651.63 | T10: 612319.0163 | U10: 2207420.442 | V10: 1503764.6 | W10: 2389038.6 | X10: 525350.2 | Y10: =Y11+Y18 -> 0 | Z10: =SUM(M10:X10) -> 11077876.66
B11: финансирование за счет краевого бюджета | C11: тыс.рублей | D11: Х | E11: Х | F11: Х | G11: ВСЕГО | H11: Х | I11: Х | J11: Х | K11: Х | L11: Х | M11: =M12+M13+M14+M15+M16 -> 117603.8712 | N11: 296848.0378 | O11: 290456.6138 | P11: 303201.1313 | Q11: 391740.9492 | R11: 420424.0796 | S11: 446393.83 | T11: 507329.7163 | U11: 1473898.542 | V11: 1401942 | W11: 2098248.4 | X11: 525236.9 | Y11: =Y12+Y13+Y14+Y15+Y16 -> 0 | Z11: 8273324.071
G12: Министерство экономического развития Забайкальского края | H12: Х | I12: Х | J12: Х | K12: Х | L12: Х | M12: =M142+M781+M833+M869+M985 -> 75461.7712 | N12: =N142+N781+N833+N869+N958+N985 -> 253654.4378 | O12: =O142+O833+O869+O958+O985 -> 274065.7138 | P12: =P30+P142+P833+P869+P950+P985 -> 303156.3313 | Q12: =Q30+Q142+Q781+Q833+Q869+Q985 -> 391740.9492 | R12: =R30+R142++R781+R833+R869+R985+R1025 -> 408424.0796 | S12: =S30+S142+S833+S869+S985+S1025+S781 -> 433206.63 | T12: =T30+T142+T833+T869+T985+T1025 -> 490906.3163 | U12: =U30+U142+U833+U869+U985+U1025 -> 515715.2019 | V12: =V30+V142+V833+V869+V985+V1025 -> 514906 | W12: =W30+W142+W833+W869+W985+W1025 -> 452545.7 | X12: =X30+X142+X833+X869+X985+X1025 -> 501981.2 | Y12: =Y30+Y1042+Y833+Y869+Y985+Y1025 -> 0 | Z12: 4615764.331
G13: Министерство финансов Забайкальского края | H13: Х | I13: Х | J13: Х | K13: Х | L13: Х | M13: =M29 -> 22524.7 | N13: =N29 -> 20250 | O13: =O29 -> 16375.9 | P13: =P29 -> 29.8 | Q13: 0 | R13: 0 | S13: 0 | T13: 0 | U13: 0 | V13: 0 | W13: 0 | X13: 0 | Y13: 0 | Z13: 59180.4
G14: Департамент государственных закупок Забайкальского края | H14: Х | I14: Х | J14: Х | K14: Х | L14: Х | M14: =M950 -> 19617.4 | N14: =N959 -> 22943.6 | O14: 0 | P14: 0 | Q14: 0 | R14: 0 | S14: 0 | T14: 0 | U14: 0 | V14: 0 | W14: 0 | X14: 0 | Y14: 0 | Z14: 42561
G15: Департамент государственного имущества и земельных отношений Забайкальского края | H15: Х | I15: Х | J15: Х | K15: Х | L15: Х | M15: 0 | N15: 0 | O15: =O781 -> 15 | P15: =P781 -> 15 | Q15: 0 | R15: 0 | S15: 0 | T15: 0 | U15: 0 | V15: 0 | W15: 0 | X15: 0 | Y15: 0 | Z15: 30
G16: Министерство по социальному, экономическому, инфраструктурному, пространственному планированию и развитию Забайкальского края (далее - Комитет по планированию и развитию Забайкальского края) | H16: Х | I16: Х | J16: Х | K16: Х | L16: Х | M16: 0 | N16: 0 | O16: 0 | P16: 0 | Q16: 0 | R16: =R31 -> 12000 | S16: =S31+S781 -> 13187.2 | T16: =T31+T781+T868 -> 16423.4 | U16: =U31+U781+U868 -> 958183.34 | V16: =V31+V782+V868 -> 887036 | W16: =W31+W782 -> 1645702.7 | X16: =X31+X782 -> 23255.7 | Y16: =Y31+Y782 -> 0 | Z16: 3555788.34
B17: кроме того, финансирование из других источников: | C17: тыс.рублей | D17: Х | E17: Х | F17: Х | G17: Х | H17: Х | I17: Х | J17: Х | K17: Х | L17: Х | M17: =SUM(M18:M20) -> 204038.7222 | N17: 324054.9078 | O17: 76721.977 | P17: 33546.98571 | Q17: 48351.4 | R17: 731343.5 | S17: 155257.8 | T17: 104989.3 | U17: 733521.9 | V17: 101822.6 | W17: 290790.2 | X17: 113.3 | Y17: =SUM(Y18:Y20) -> 0 | Z17: 2804552.593
B18: - из федерального бюджета | C18: тыс.рублей | D18: Х | E18: Х | F18: Х | G18: Х | H18: Х | I18: Х | J18: Х | K18: Х | L18: Х | M18: =204038.72+0.00219 -> 204038.7222 | N18: =N144+N835+N871 -> 324054.9078 | O18: 76721.977 | P18: 33546.98571 | Q18: 48351.4 | R18: 731343.5 | S18: 155257.8 | T18: 104989.3 | U18: =U144+U835+U871+U1027+U129 -> 733521.9 | V18: =V144+V835+V871+V1027 -> 101822.6 | W18: =W144+W835+W871+W1027 -> 290790.2 | X18: =X144+X835+X871+X1027 -> 113.3 | Y18: =Y144+Y835+Y871+Y1027 -> 0 | Z18: 2804552.593
B19: - из местных бюджетов | C19: тыс.рублей | D19: Х | E19: Х | F19: Х | G19: Х | H19: Х | I19: Х | J19: Х | K19: Х | L19: Х | M19: 0 | N19: 0 | O19: 0 | P19: 0 | Q19: 0 | R19: 0 | S19: 0 | T19: 0 | U19: 0 | V19: 0 | W19: 0 | X19: 0 | Y19: 0 | Z19: 0
B20: - из внебюджетных источников | C20: тыс.рублей | D20: Х | E20: Х | F20: Х | G20: Х | H20: Х | I20: Х | J20: Х | K20: Х | L20: Х | M20: 0 | N20: 0 | O20: 0 | P20: 0 | Q20: 0 | R20: 0 | S20: 0 | T20: 0 | U20: 0 | V20: 0 | W20: 0 | X20: 0 | Y20: 0 | Z20: 0
B21: Показатель "Индекс физического объема валового регионального продукта, в % к предыдущему году" | C21: % | D21: 1 | E21: Определяется как отношение абсолютного объема валового регионального продукта двух рассматриваемых периодов в постоянных ценах | F21: Х | G21: Х | H21: Х | I21: Х | J21: Х | K21: 102.2 | L21: 98.1 | M21: 94.2 | N21: 99.1 | O21: 100.1 | P21: 104.2 | Q21: 101.1 | R21: 102.4 | S21: 104.5 | T21: 105.4 | U21: 101.9 | V21: 101.5 | W21: 103.6 | X21: 103.9 | Y21: Х | Z21: Х
B22: Показатель "Объем инвестиций в основной капитал (за счет всех источников финансирования)" | C22: млн.рублей | D22: 1 | E22: Х | F22: Х | G22: Х | H22: Х | I22: Х | J22: Х | K22: 67595.801 | L22: 57460.954 | M22: 69504.944 | N22: 76281.788 | O22: 85702.4 | P22: 96324.45 | Q22: 90011.519 | R22: 96182.444 | S22: 126879.966 | T22: 163401.063 | U22: 182104.7 | V22: 202684.1945 | W22: 226925.6802 | X22: 252764.9813 | Y22: Х | Z22: Х
B23: Показатель "Количество субъектов малого и среднего предпринимательства (включая индивидуальных предпринимателей) в расчете на 1 тыс. человек населения Забайкальского края" | C23: ед. | D23: 1 | E23: Абсолютный показатель | F23: Х | G23: Х | H23: Х | I23: Х | J23: Х | K23: 33.1 | L23: 29.2 | M23: 30 | N23: 31 | O23: 31 | P23: 24 | Q23: 25 | R23: 30 | S23: 26 | T23: Х | U23: Х | V23: Х | W23: Х | X23: Х | Y23: Х | Z23: Х
B24: Показатель "Численность занятых в сфере малого и среднего предпринимательства, включая индивидуальных предпринимателей и самозанятых" | C24: чел. | D24: 1 | E24: Абсолютный показатель | F24: Х | G24: Х | H24: Х | I24: Х | J24: Х | K24: Х | L24: Х | M24: Х | N24: Х | O24: Х | P24: Х | Q24: Х | R24: 96181 | S24: 94421 | T24: 96225 | U24: 98017 | V24: 99600 | W24: 101600 | X24: 103545 | Y24: Х | Z24: 103545
B25: Показатель "Уровень удовлетворенности граждан Российской Федерации качеством предоставления государственных и муниципальных услуг" | C25: % | D25: 1 | E25: Определяется в соответствии с методикой проведения оценки качества предоставления государственных и муниципальных услуг в Забайкальском крае | F25: Х | G25: Х | H25: Х | I25: Х | J25: Х | K25: 61 | L25: 83.6 | M25: 89.7 | N25: 98.6 | O25: 75 | P25: 80 | Q25: 90 | R25: 90 | S25: 90 | T25: 90 | U25: 90 | V25: 90 | W25: 90 | X25: 90 | Y25: Х | Z25: 90
B26: Показатель "Удельный вес инновационных товаров, работ, услуг в общем объеме отгруженных товаров, выполненных работ, услуг" | C26: % | D26: 1 | E26: ТРУин / ТРУ *100, где ТРУин - объем инновационных товаров, работ, услуг ТРУ - объем всех товаров, работ, услуг по обследованным организациям | F26: Х | G26: Х | H26: Х | I26: Х | J26: Х | K26: 13.7 | L26: 6.3 | M26: 7.3 | N26: 8.9 | O26: 9 | P26: 6 | Q26: 6.3 | R26: 7 | S26: 7.2 | T26: 7.5 | U26: 7.7 | V26: 7.9 | W26: 8 | X26: 8 | Y26: Х | Z26: Х
B27: Задача "Активизация привлечения частных инвестиций в экономику Забайкальского края" | C27: Х | D27: Х | E27: Х | F27: Х | G27: Х | H27: Х | I27: Х | J27: Х | K27: Х | L27: Х | M27: Х | N27: Х | O27: Х | P27: Х | Q27: Х | R27: Х | S27: Х | T27: Х | U27: Х | V27: Х | W27: Х | X27: Х | Y27: Х | Z27: Х
A28: 1. | B28: Подпрограмма "Стимулирование инвестиционной деятельности в Забайкальском крае" | C28: Х | D28: 1 | E28: Х | F28: 2014-2025 | G28: Министерство экономического развития Забайкальского края, Министерство финансов Забайкальского края, Комитет планирования и развития Забайкальского края | H28: Х | I28: Х | J28: Х | K28: Х | L28: Х | M28: Х | N28: Х | O28: Х | P28: Х | Q28: Х | R28: Х | S28: Х | T28: Х | U28: Х | V28: Х | W28: Х | X28: Х | Y28: Х | Z28: Х
B29: финансирование за счет краевого бюджета | C29: тыс.рублей | D29: Х | E29: Х | F29: Х | G29: Министерство финансов Забайкальского края | H29: Х | I29: Х | J29: Х | K29: Х | L29: Х | M29: =M38 -> 22524.7 | N29: =N38 -> 20250 | O29: =O38 -> 16375.9 | P29: =P38 -> 29.8 | Q29: Х | R29: Х | S29: Х | T29: Х | U29: Х | V29: Х | W29: Х | X29: Х | Y29: Х | Z29: =SUM(M29:X29) -> 59180.4
G30: Министерство экономического развития Забайкальского края | H30: Х | I30: Х | J30: Х | K30: Х | L30: Х | M30: Х | N30: Х | O30: Х | P30: =P39 -> 83.2 | Q30: =Q39 -> 1144.3 | R30: =R39+R90+R116 -> 46749.1 | S30: =S39+S90 -> 5528.03 | T30: 48025.9 | U30: 21333.74894 | V30: 31333.7 | W30: 21333.7 | X30: 35485.7 | Y30: 0 | Z30: =SUM(M30:X30) -> 211017.3789
G31: Комитет планирования и развития Забайкальского края | H31: Х | I31: Х | J31: Х | K31: Х | L31: Х | M31: 0 | N31: 0 | O31: 0 | P31: 0 | Q31: 0 | R31: =R135 -> 12000 | S31: =S40+S117 -> 13187.2 | T31: =T40+T117+T91 -> 12979.1 | U31: =U40+U91+U117 -> 958183.34 | V31: =V40+V117+V91+V75 -> 881036 | W31: =W40+W117+W91 -> 1645702.7 | X31: =X40+X117+X91 -> 23255.7 | Y31: 0 | Z31: =SUM(M31:X31) -> 3546344.04
B32: кроме того, финансирование из других источников: | C32: тыс.рублей | D32: Х | E32: Х | F32: Х | H32: Х | I32: Х | J32: Х | K32: Х | L32: Х | M32: =SUM(M33:M35) -> 0 | N32: 0 | O32: 0 | P32: 0 | Q32: 0 | R32: 0 | S32: 0 | T32: 0 | U32: 474503.9 | V32: 0 | W32: 0 | X32: 0 | Y32: Х | Z32: =SUM(M32:X32) -> 474503.9
B33: - из федерального бюджета | C33: тыс.рублей | D33: Х | E33: Х | F33: Х | G33: Х | H33: Х | I33: Х | J33: Х | K33: Х | L33: Х | M33: 0 | N33: 0 | O33: 0 | P33: 0 | Q33: 0 | R33: 0 | S33: 0 | T33: 0 | U33: =U129 -> 474503.9 | V33: =V129 -> 0 | W33: =W129 -> 0 | X33: =X129 -> 0 | Y33: Х | Z33: =SUM(M33:X33) -> 474503.9
B34: - из местных бюджетов | C34: тыс.рублей | D34: Х | E34: Х | F34: Х | G34: Х | H34: Х | I34: Х | J34: Х | K34: Х | L34: Х | M34: 0 | N34: 0 | O34: 0 | P34: 0 | Q34: 0 | R34: 0 | S34: 0 | T34: 0 | U34: 0 | V34: 0 | W34: 0 | X34: 0 | Y34: Х | Z34: =SUM(M34:S34) -> 0
B35: - из внебюджетных источников | C35: тыс.рублей | D35: Х | E35: Х | F35: Х | G35: Х | H35: Х | I35: Х | J35: Х | K35: Х | L35: Х | M35: 0 | N35: 0 | O35: 0 | P35: 0 | Q35: 0 | R35: 0 | S35: 0 | T35: 0 | U35: 0 | V35: 0 | W35: 0 | X35: 0 | Y35: Х | Z35: =SUM(M35:S35) -> 0
B36: Показатель "Количество инвестиционных проектов, получивших государственную поддержку инвестиционной деятельности" | C36: ед. | D36: 1 | E36: Абсолютный показатель | F36: 2014-2025 | G36: Министерство финансов Забайкальского края, Министерство экономического развития Забайкальского края, Комитет планирования и развития Забайкальского края | H36: Х | I36: Х | J36: Х | K36: 21 | L36: 15 | M36: 14 | N36: 8 | O36: 8 | P36: 5 | Q36: 4 | R36: 4 | S36: 4 | T36: 2 | U36: 2 | V36: 1 | W36: 1 | X36: 1 | Y36: Х | Z36: Х
A37: 1.1. | B37: Основное мероприятие "Государственная поддержка инвестиционной и инновационной деятельности, завоза продукции (товаров) в населенные пункты с ограниченными сроками завоза грузов (продукции) в Забайкальском крае, градообразующих организаций промышленности и приоритетных организаций, составляющих экономическую основу Забайкальского края" | C37: Х | D37: 1 | E37: Х | F37: 2014-2025 | G37: Министерство финансов Забайкальского края, Министерство экономического развития Забайкальского края, Комитет планирования и развития Забайкальского края | H37: Х | I37: Х | J37: Х | K37: Х | L37: Х | M37: Х | N37: Х | O37: Х | P37: Х | Q37: Х | R37: Х | S37: Х | T37: Х | U37: Х | V37: Х | W37: Х | X37: Х | Y37: Х | Z37: Х
B38: финансирование за счет краевого бюджета | C38: тыс.рублей | D38: Х | E38: Х | F38: Х | G38: Министерство финансов Забайкальского края | H38: Х | I38: Х | J38: Х | K38: Х | L38: Х | M38: =M50 -> 22524.7 | N38: =N50 -> 20250 | O38: =O51 -> 16375.9 | P38: =P51 -> 29.8 | Q38: =Q51 -> Х | R38: =R51 -> Х | S38: =S51 -> Х | T38: Х | U38: Х | V38: Х | W38: Х | X38: Х | Y38: Х | Z38: =SUM(M38:X38) -> 59180.4
G39: Министерство экономического развития Забайкальского края | H39: Х | I39: Х | J39: Х | K39: Х | L39: Х | M39: Х | N39: Х | O39: Х | P39: =P52 -> 83.2 | Q39: 1144.3 | R39: 432.4 | S39: 902.8 | T39: 1191.2 | U39: 1333.74894 | V39: 1333.7 | W39: 1333.7 | X39: 5485.7 | Y39: Х | Z39: =SUM(M39:X39) -> 13240.74894
G40: Комитет планирования и развития Забайкальского края | H40: Х | I40: Х | J40: Х | K40: Х | L40: Х | M40: Х | N40: Х | O40: Х | P40: Х | Q40: Х | R40: Х | S40: =S54 -> 3362.7 | T40: =T54 -> 0 | U40: =U53+U54+U67+U71+U72 -> 939968.54 | V40: =V53+V54+V67+V71+V72 -> 862860 | W40: =W53+W54+W67+W71+W72 -> 1627467.8 | X40: =X53+X54+X67+X71+X72 -> 5015.4 | Y40: Х | Z40: =SUM(M40:X40) -> 3438674.44
B41: Показатель "Индекс физического объема инвестиций в основной капитал" (за счет всех источников финансирования) | C41: % | D41: X | E41: Определяется как отношение абсолютного объема инвестиций в основной капитал двух рассматриваемых периодов в сопоставимых ценах. | F41: X | G41: Комитет планирования и развития Забайкальского края | H41: Х | I41: Х | J41: Х | K41: 120.7 | L41: 80.7 | M41: 114.9 | N41: 103.5 | O41: 106.4926377 | P41: 105.932262 | Q41: 88.57457827 | R41: 98.75758399 | S41: 121.8848106 | T41: 119.5 | U41: 96.8 | V41: 105.1 | W41: 106.3 | X41: 106.3 | Y41: Х | Z41: Х
B42: Показатель "Уровень освоения средств, предусмотренных в бюджете Забайкальского края на предоставление государственной поддержки инвестиционной деятельности, по принятым решениям" | C42: % | D42: Х | E42: Объем средств, предусмотренный в бюджете Забайкальского края на предоставление государственной поддержки/ Объем фактически выделенных средств * 100 | F42: 2014-2025 | G42: Министерство финансов Забайкальского края | H42: Х | I42: Х | J42: Х | K42: 100 | L42: 100 | M42: 100 | N42: 100 | O42: 100 | P42: 100 | Q42: Х | R42: Х | S42: Х | T42: Х | U42: Х | V42: Х | W42: Х | X42: Х | Y42: Х | Z42: Х
G43: Министерство экономического развития Забайкальского края | H43: Х | I43: Х | J43: Х | K43: Х | L43: Х | M43: Х | N43: Х | O43: Х | P43: Х | Q43: Х | R43: Х | S43: Х | T43: Х | U43: Х | V43: Х | W43: 100 | X43: 100 | Y43: Х | Z43: 100
G44: Комитет планирования и развития Забайкальского края | H44: Х | I44: Х | J44: Х | K44: Х | L44: Х | M44: Х | N44: Х | O44: Х | P44: Х | Q44: Х | R44: Х | S44: 100 | T44: 100 | U44: 100 | V44: 100 | W44: 100 | X44: 100 | Y44: Х | Z44: 100
B45: Показатель "Уровень освоения средств, предусмотренных в бюджете Забайкальского края на предоставление государственной поддержки завоза продукции (товаров) в населенные пункты с ограниченными сроками завоза грузов (продукции)" | C45: % | D45: Х | E45: Объем средств, предусмотренный в бюджете Забайкальского края на предоставление государственной поддержки/ Объем фактически выделенных средств * 100 | F45: 2014-2025 | G45: Министерство финансов Забайкальского края | H45: Х | I45: Х | J45: Х | K45: 100 | L45: 100 | M45: 100 | N45: 100 | O45: 100 | P45: 100 | Q45: Х | R45: Х | S45: Х | T45: Х | U45: Х | V45: Х | W45: Х | X45: Х | Y45: Х | Z45: Х
G46: Министерство экономического развития Забайкальского края | H46: Х | I46: Х | J46: Х | K46: Х | L46: Х | M46: Х | N46: Х | O46: Х | P46: 100 | Q46: 100 | R46: 100 | S46: 100 | T46: 100 | U46: 100 | V46: 100 | W46: 100 | X46: 100 | Y46: Х | Z46: 100
B47: Показатель "Количество субъектов инновационной деятельности, получивших государственную поддержку" | C47: ед. | D47: Х | E47: Абсолютный показатель | F47: 2014-2025 | G47: Министерство экономического развития Забайкальского края | H47: Х | I47: Х | J47: Х | K47: X | L47: 0 | M47: 0 | N47: 0 | O47: 0 | P47: 0 | Q47: 0 | R47: 0 | S47: Х | T47: Х | U47: Х | V47: Х | W47: Х | X47: Х | Y47: Х | Z47: =SUM(L47:R47) -> 0
G48: Комитет планирования и развития Забайкальского края | H48: Х | I48: Х | J48: Х | K48: Х | L48: Х | M48: Х | N48: Х | O48: Х | P48: Х | Q48: Х | R48: Х | S48: 0 | T48: 0 | U48: 1 | V48: 0 | W48: 0 | X48: 0 | Y48: Х | Z48: 1
A49: 1.1.1. | B49: Мероприятие "Государственная поддержка инвестиционной и инновационной деятельности, завоза продукции (товаров) в населенные пункты с ограниченными сроками завоза грузов (продукции) в Забайкальском крае, градообразующих организаций промышленности и приоритетных организаций, составляющих экономическую основу Забайкальского края" | C49: Х | D49: 1 | E49: Х | F49: 2014-2025 | G49: Министерство финансов Забайкальского края, Министерство экономического развития Забайкальского края, Комитет планирования и развития Забайкальского края | H49: Х | I49: Х | J49: Х | K49: Х | L49: Х | M49: Х | N49: Х | O49: Х | P49: Х | Q49: Х | R49: Х | S49: Х | T49: Х | U49: Х | V49: Х | W49: Х | X49: Х | Y49: Х | Z49: Х
B50: финансирование за счет краевого бюджета | C50: тыс.рублей | D50: Х | E50: Х | F50: Х | G50: Министерство финансов Забайкальского края | H50: 0412 | I50: 3408300 | J50: 810 | K50: Х | L50: Х | M50: 22524.7 | N50: 20250 | O50: Х | P50: Х | Q50: Х | R50: Х | S50: Х | T50: Х | U50: Х | V50: Х | W50: Х | X50: Х | Y50: Х | Z50: =SUM(M50:X50) -> 42774.7
H51: 0412 | I51: 0310106340 | J51: 811 | K51: Х | L51: Х | M51: Х | N51: Х | O51: 16375.9 | P51: 29.8 | Q51: Х | R51: Х | S51: Х | T51: Х | U51: Х | V51: Х | W51: Х | X51: Х | Y51: Х | Z51: =SUM(M51:X51) -> 16405.7
G52: Министерство экономического развития Забайкальского края | H52: 0412 | I52: 0310106340 | J52: 811 | K52: Х | L52: Х | M52: Х | N52: Х | O52: Х | P52: 83.2 | Q52: 1144.3 | R52: 432.4 | S52: 902.8 | T52: 1191.2 | U52: 1333.74894 | V52: 1333.7 | W52: 1333.7 | X52: 5485.7 | Y52: Х | Z52: =SUM(M52:X52) -> 13240.74894
G53: Комитет планирования и развития Забайкальского края | H53: 0412 | I53: 0310106340 | J53: 813 | K53: X | L53: X | M53: X | N53: X | O53: X | P53: X | Q53: X | R53: X | S53: 0 | T53: 0 | U53: 15928 | V53: 0 | W53: 0 | X53: 0 | Y53: Х | Z53: =SUM(M53:X53) -> 15928
H54: 0412 | I54: 0310106340 | J54: 811 | K54: Х | L54: Х | M54: Х | N54: Х | O54: Х | P54: Х | Q54: Х | R54: Х | S54: 3362.7 | T54: 0 | U54: 1698 | V54: 0 | W54: 0 | X54: 0 | Y54: Х | Z54: =SUM(M54:X54) -> 5060.7
B55: Показатель "Уровень освоения средств, предусмотренных в бюджете Забайкальского края на предоставление государственной поддержки инвестиционной деятельности, по принятым решениям" | C55: % | D55: Х | E55: Объем средств, предусмотренный в бюджете Забайкальского края на предоставление государственной поддержки/ Объем фактически выделенных средств * 100 | F55: 2014-2025 | G55: Министерство финансов Забайкальского края | H55: Х | I55: Х | J55: Х | K55: 100 | L55: 100 | M55: 100 | N55: 100 | O55: 100 | P55: 100 | Q55: Х | R55: Х | S55: Х | T55: Х | U55: Х | V55: Х | W55: Х | X55: Х | Y55: Х | Z55: Х
G56: Министерство экономического развития Забайкальского края | H56: Х | I56: Х | J56: Х | K56: Х | L56: Х | M56: Х | N56: Х | O56: Х | P56: Х | Q56: Х | R56: Х | S56: Х | T56: Х | U56: Х | V56: Х | W56: Х | X56: Х | Y56: Х | Z56: Х
G57: Комитет планирования и развития Забайкальского края | H57: Х | I57: Х | J57: Х | K57: Х | L57: Х | M57: Х | N57: Х | O57: Х | P57: Х | Q57: Х | R57: Х | S57: 100 | T57: Х | U57: 100 | V57: Х | W57: Х | X57: Х | Y57: Х | Z57: Х
B58: Показатель "Уровень освоения средств, предусмотренных в бюджете Забайкальского края на предоставление государственной поддержки завоза продукции (товаров) в населенные пункты с ограниченными сроками завоза грузов (продукции)" | C58: % | D58: Х | E58: Объем средств, предусмотренный в бюджете Забайкальского края на предоставление государственной поддержки/ Объем фактически выделенных средств * 100 | F58: 2014-2025 | G58: Министерство финансов Забайкальского края | H58: Х | I58: Х | J58: Х | K58: 100 | L58: 100 | M58: 100 | N58: 100 | O58: 100 | P58: 100 | Q58: Х | R58: Х | S58: Х | T58: Х | U58: Х | V58: Х | W58: Х | X58: Х | Y58: Х | Z58: Х
G59: Министерство экономического развития Забайкальского края | H59: Х | I59: Х | J59: Х | K59: Х | L59: Х | M59: Х | N59: Х | O59: Х | P59: 100 | Q59: 100 | R59: 100 | S59: 100 | T59: 100 | U59: 100 | V59: 100 | W59: 100 | X59: 100 | Y59: Х | Z59: Х
B60: Показатель "Количество субъектов инвестиционной и (или) инновационной деятельности, получивших государственную поддержку" | C60: ед. | D60: Х | E60: Абсолютный показатель | F60: 2014-2025 | G60: Министерство экономического развития Забайкальского края | H60: Х | I60: Х | J60: Х | K60: X | L60: 0 | M60: 0 | N60: 0 | O60: 0 | P60: 0 | Q60: 0 | R60: 0 | S60: Х | T60: Х | U60: Х | V60: Х | W60: Х | X60: Х | Y60: Х | Z60: =SUM(L60:R60) -> 0
G61: Комитет планирования и развития Забайкальского края | H61: Х | I61: Х | J61: Х | K61: Х | L61: Х | M61: Х | N61: Х | O61: Х | P61: Х | Q61: Х | R61: Х | S61: 0 | T61: 0 | U61: 1 | V61: 0 | W61: 0 | X61: 0 | Y61: Х | Z61: =SUM(S61:W61) -> 1
A62: 1.1.2. | B62: Мероприятие "Организация конкурсных отборов инвестиционных проектов на предоставление государственной поддержки инвестиционной деятельности" | C62: Х | D62: Х | E62: Х | F62: 2014-2025 | G62: Министерство экономического развития Забайкальского края, Комитет планирования и развития Забайкальского края | H62: Х | I62: Х | J62: Х | K62: Х | L62: Х | M62: Х | N62: Х | O62: Х | P62: Х | Q62: Х | R62: Х | S62: Х | T62: Х | U62: Х | V62: Х | W62: Х | X62: Х | Y62: Х | Z62: Х
B63: финансирование за счет краевого бюджета | C63: тыс.рублей | D63: Х | E63: Х | F63: Х | G63: Министерство финансов Забайкальского края | H63: Х | I63: Х | J63: Х | K63: Х | L63: Х | M63: Х | N63: Х | O63: Х | P63: Х | Q63: Х | R63: Х | S63: Х | T63: Х | U63: Х | V63: Х | W63: Х | X63: Х | Y63: Х | Z63: Х
B64: Показатель "Количество проведенных конкурсных отборов" | C64: ед. | D64: Х | E64: Абсолютный показатель | F64: 2014-2025 | G64: Министерство экономического развития Забайкальского края | H64: Х | I64: Х | J64: Х | K64: 2 | L64: 2 | M64: 2 | N64: 2 | O64: 1 | P64: 0 | Q64: 0 | R64: 0 | S64: Х | T64: Х | U64: Х | V64: Х | W64: 1 | X64: Х | Y64: Х | Z64: =SUM(K64:R64, W64) -> 10
G65: Комитет планирования и развития Забайкальского края | H65: Х | I65: Х | J65: Х | K65: Х | L65: Х | M65: Х | N65: Х | O65: Х | P65: Х | Q65: Х | R65: 0 | S65: 1 | T65: 1 | U65: 1 | V65: 1 | W65: 1 | X65: 0 | Y65: Х | Z65: =SUM(R65:W65) -> 5
A66: 1.1.3. | B66: Мероприятие "Предоставление субсидий из бюджета Забайкальского края юридическим лицам, 100 процентов акций (долей) которых принадлежит Забайкальскому краю, на осуществление капитальных вложений в объекты капитального строительства, находящиеся в собственности указанных лиц , и (или) на приобретение ими объектов недвижимого имущества с последующим увеличением уставных капиталов таких юридических лиц в соответствии с законодательством Российской Федерации" | C66: Х | D66: Х | E66: Х | F66: 2022-2025 | G66: Комитет планирования и развития Забайкальского края | H66: Х | I66: Х | J66: Х | K66: Х | L66: Х | M66: Х | N66: Х | O66: Х | P66: Х | Q66: Х | R66: Х | S66: Х | T66: Х | U66: Х | V66: Х | W66: Х | X66: Х | Y66: Х | Z66: Х
B67: финансирование за счет краевого бюджета | C67: тыс.рублей | D67: Х | E67: Х | F67: 2022-2025 | G67: Комитет планирования и развития Забайкальского края | H67: 0412 | I67: 0310106370 | J67: 815 | K67: Х | L67: Х | M67: Х | N67: Х | O67: Х | P67: Х | Q67: Х | R67: Х | S67: Х | T67: Х | U67: 465250 | V67: 0 | W67: 0 | X67: 0 | Y67: Х | Z67: =U67+V67+W67+X67 -> 465250
B68: Показатель "Количество объектов инфраструктуры для новых инвестиционных проектов, введенных в эксплуатацию" | C68: ед. | D68: Х | E68: Абсолютный показатель | F68: 2022-2025 | G68: Комитет планирования и развития Забайкальского края | H68: Х | I68: Х | J68: Х | K68: Х | L68: Х | M68: Х | N68: Х | O68: Х | P68: Х | Q68: Х | R68: Х | S68: Х | T68: Х | U68: 0 | V68: 1 | W68: 6 | X68: 1 | Y68: Х | Z68: 8
B69: Показатель "Степень готовности объектов инфраструктуры" | C69: % | D69: Х | E69: Пго = Оф/Овсего * 100%, где: Пго – степень готовности объектов инфраструктуры; Оф – объем фактически освоенных средств субсидии, выделенных на строительство объектов инфраструктуры для новых инвестиционных проектов, млн. рублей; Овсего – общий объем средств субсидии, выделяемых на строительство объектов инфраструктуры за весь период строительства, млн. рублей | F69: 2022-2025 | G69: Комитет планирования и развития Забайкальского края | H69: Х | I69: Х | J69: Х | K69: Х | L69: Х | M69: Х | N69: Х | O69: Х | P69: Х | Q69: Х | R69: Х | S69: Х | T69: Х | U69: X | V69: 70 | W69: 100 | X69: 0 | Y69: Х | Z69: =W69 -> 100
A70: 1.1.4. | B70: Мероприятие "Предоставление субсидии из бюджета Забайкальского края юридическим лицам (за исключением государственных (муниципальных) учреждений) на финансовое обеспечение и (или) возмещение затрат на выполнение инженерных изысканий, проектирование, экспертизу проектной документации и (или) результатов инженерных изысканий, строительство, реконструкцию и ввод в эксплуатацию объектов инфраструктуры, а также на подключение (технологическое присоединение) объектов капитального строительства к сетям инженерно-технического обеспечения в целях реализации новых инвестиционных проектов на территории Забайкальского края (в ред. постановления Правительства Забайкальского края № 590 от 6.12.2022) | C70: Х | D70: Х | E70: Х | F70: 2022-2025 | G70: Комитет планирования и развития Забайкальского края | H70: Х | I70: Х | J70: Х | K70: Х | L70: Х | M70: Х | N70: Х | O70: Х | P70: Х | Q70: Х | R70: Х | S70: Х | T70: Х | U70: Х | V70: Х | W70: Х | X70: Х | Y70: Х | Z70: Х
B71: финансирование за счет краевого бюджета | C71: тыс. рублей | D71: Х | E71: Х | F71: 2022-2025 | G71: Комитет планирования и развития Забайкальского края | H71: 0412 | I71: 310106360 | J71: 811 | K71: Х | L71: Х | M71: Х | N71: Х | O71: Х | P71: Х | Q71: Х | R71: Х | S71: Х | T71: Х | U71: 294592.54 | V71: 862860 | W71: 1627467.8 | X71: 5015.4 | Y71: Х | Z71: =U71+V71+W71+X71 -> 2789935.74
C72: тыс. рублей | D72: Х | E72: Х | F72: 2022-2025 | G72: Комитет планирования и развития Забайкальского края | H72: 0412 | I72: 310106360 | J72: 813 | K72: Х | L72: Х | M72: Х | N72: Х | O72: Х | P72: Х | Q72: Х | R72: Х | S72: Х | T72: Х | U72: 162500 | V72: 0 | W72: 0 | X72: 0 | Y72: Х | Z72: =U72+V72+W72+X72 -> 162500
B73: Показатель "Количество объектов инфраструктуры для новых инвестиционных проектов, введенных в эксплуатацию" | C73: ед. | D73: Х | E73: Абсолютный показатель | F73: 2022-2025 | G73: Комитет планирования и развития Забайкальского края | H73: Х | I73: Х | J73: Х | K73: Х | L73: Х | M73: Х | N73: Х | O73: Х | P73: Х | Q73: Х | R73: Х | S73: Х | T73: Х | U73: 28 | V73: 11 | W73: 2 | X73: 0 | Y73: Х | Z73: =SUM(U73:W73) -> 41
A74: 1.2. | B74: Основное мероприятие "Создание условий для обеспечения благоприятного инвестиционного климата в Забайкальском крае" | C74: Х | D74: 1 | E74: Х | F74: 2014-2025 | G74: Министерство экономического развития Забайкальского края, Комитет планирования и развития Забайкальского края | H74: Х | I74: Х | J74: Х | K74: Х | L74: Х | M74: Х | N74: Х | O74: Х | P74: Х | Q74: Х | R74: Х | S74: Х | T74: Х | U74: Х | V74: Х | W74: Х | X74: Х | Y74: Х | Z74: Х
B75: финансирование за счет краевого бюджета | C75: тыс.рублей | D75: Х | E75: Х | F75: Х | G75: Министерство финансов Забайкальского края | H75: Х | I75: Х | J75: Х | K75: Х | L75: Х | M75: Х | N75: Х | O75: Х | P75: Х | Q75: Х | R75: Х | S75: Х | T75: Х | U75: Х | V75: =V84 -> 0 | W75: =W84 -> 0 | X75: =X84 -> 0 | Y75: Х | Z75: =Z84 -> 0
Y76: Х
B77: Показатель "Количество разделов Стандарта деятельности органов исполнительной власти края по обеспечению благоприятного инвестиционного климата в Забайкальском крае, реализуемых в крае" | C77: разделов | D77: Х | E77: Абсолютный показатель | F77: 2014-2018 | G77: Министерство экономического развития Забайкальского края | H77: Х | I77: Х | J77: Х | K77: Х | L77: Х | M77: 15 | N77: 15 | O77: 15 | P77: 15 | Q77: 15 | R77: Х | S77: Х | T77: Х | U77: Х | V77: Х | W77: Х | X77: Х | Y77: Х | Z77: Х
A78: 1.2.1. | B78: Мероприятие "Обеспечение функционирования "одного окна" для инвесторов" | C78: Х | D78: Х | E78: Х | F78: 2014-2025 | G78: Министерство экономического развития Забайкальского края, Комитет планирования и развития Забайкальского края | H78: Х | I78: Х | J78: Х | K78: Х | L78: Х | M78: Х | N78: Х | O78: Х | P78: Х | Q78: Х | R78: Х | S78: Х | T78: Х | U78: Х | V78: Х | W78: Х | X78: Х | Y78: Х | Z78: Х
B79: финансирование за счет краевого бюджета | C79: тыс.рублей | D79: Х | E79: Х | F79: Х | G79: Комитет планирования и развития Забайкальского края | H79: Х | I79: Х | J79: Х | K79: Х | L79: Х | M79: Х | N79: Х | O79: Х | P79: Х | Q79: Х | R79: Х | S79: Х | T79: Х | U79: Х | V79: Х | W79: Х | X79: Х | Y79: Х | Z79: Х
Y80: Х
B81: Показатель "Количество инвестиционных проектов, получивших сопровождение в рамках "одного окна" | C81: ед. | D81: Х | E81: Абсолютный показатель | F81: 2014-2025 | G81: Министерство экономического развития Забайкальского края | H81: Х | I81: Х | J81: Х | K81: Х | L81: Х | M81: 10 | N81: 35 | O81: 40 | P81: 7 | Q81: 20 | R81: 20 | S81: Х | T81: Х | U81: Х | V81: Х | W81: Х | X81: Х | Y81: Х | Z81: Х
G82: Комитет планирования и развития Забайкальского края | H82: Х | I82: Х | J82: Х | K82: Х | L82: Х | M82: Х | N82: Х | O82: Х | P82: Х | Q82: Х | R82: Х | S82: 20 | T82: 20 | U82: 25 | V82: 25 | W82: 25 | X82: 25 | Y82: Х | Z82: =SUM(S82:X82) -> 140
A83: 1.2.2. | B83: Мероприятие «Предоставление субсидий из бюджета Забайкальского края юридическим лицам (за исключением государственных (муниципальных) учреждений), являющимся специализированными организациями по привлечению инвестиций и работе с инвесторами в Забайкальском крае, в целях финансового обеспечения и (или) возмещения затрат, связанных с созданием условий для формирования благоприятного инвестиционного климата в Забайкальском крае» | C83: Х | D83: Х | E83: Х | F83: 2023-2025 | G83: Комитет планирования и развития Забайкальского края | H83: Х | I83: Х | J83: Х | K83: Х | L83: Х | M83: Х | N83: Х | O83: Х | P83: Х | Q83: Х | R83: Х | S83: Х | T83: Х | U83: Х | V83: Х | W83: Х | X83: Х | Y83: Х | Z83: Х
B84: финансирование за счет краевого бюджета | C84: тыс.рублей | D84: Х | E84: Х | F84: Х | G84: Комитет планирования и развития Забайкальского края | H84: Х | I84: Х | J84: Х | K84: Х | L84: Х | M84: Х | N84: Х | O84: Х | P84: Х | Q84: Х | R84: Х | S84: Х | T84: Х | U84: Х | V84: 0 | W84: 0 | X84: 0 | Y84: Х | Z84: =SUM(V84:X84) -> 0
B85: Показатель "Увеличение объема частных инвестиций, привлеченных специализированной организацией, в том числе в рамках концессий" | C85: тыс. рублей | D85: Х | E85: Абсолютный показатель | F85: 2023-2025 | G85: Комитет планирования и развития Забайкальского края | H85: Х | I85: Х | J85: Х | K85: Х | L85: Х | M85: Х | N85: Х | O85: Х | P85: Х | Q85: Х | R85: Х | S85: Х | T85: Х | U85: 0 | V85: 1000000 | W85: 1200000 | X85: 1400000 | Y85: Х | Z85: =SUM(V85:X85) -> 3600000
B86: Показатель "Количество инвестиционных проектов, привлеченных специализированной организацией, с объемом инвестиций более 50 млн. рублей" | C86: ед. | D86: Х | E86: Абсолютный показатель | F86: 2023-2025 | G86: Комитет планирования и развития Забайкальского края | H86: Х | I86: Х | J86: Х | K86: Х | L86: Х | M86: Х | N86: Х | O86: Х | P86: Х | Q86: Х | R86: Х | S86: Х | T86: Х | U86: Х | V86: 0 | W86: 0 | X86: 3 | Y86: Х | Z86: =SUM(V86:X86) -> 3
B87: Показатель "Количество концессионных соглашений, находящихся на сопровождении специализированной организации" | C87: ед. | D87: Х | E87: Абсолютный показатель | F87: 2023-2025 | G87: Комитет планирования и развития Забайкальского края | H87: Х | I87: Х | J87: Х | K87: Х | L87: Х | M87: Х | N87: Х | O87: Х | P87: Х | Q87: Х | R87: Х | S87: Х | T87: Х | U87: Х | V87: 3 | W87: 4 | X87: 3 | Y87: Х | Z87: 10
B88: Показатель "Количество работников специализированной организации и других заинтересованных лиц, прошедших дополнительное обучение, принявших участие в тренингах, семинарах и иных мероприятиях для повышения квалификации" | C88: ед. | D88: Х | E88: Абсолютный показатель | F88: 2023-2025 | G88: Комитет планирования и развития Забайкальского края | H88: Х | I88: Х | J88: Х | K88: Х | L88: Х | M88: Х | N88: Х | O88: Х | P88: Х | Q88: Х | R88: Х | S88: Х | T88: Х | U88: Х | V88: 2 | W88: 0 | X88: 0 | Y88: Х | Z88: 2
A89: 1.3. | B89: Основное мероприятие "Информационная поддержка осуществления инвестиционной деятельности в Забайкальском крае" | C89: Х | D89: 1 | E89: Х | F89: 2014-2025 | G89: Министерство экономического развития Забайкальского края, Комитет планирования и развития Забайкальского края | H89: Х | I89: Х | J89: Х | K89: Х | L89: Х | M89: Х | N89: Х | O89: Х | P89: Х | Q89: Х | R89: Х | S89: Х | T89: Х | U89: Х | V89: Х | W89: Х | X89: Х | Y89: Х | Z89: Х
B90: финансирование за счет краевого бюджета | C90: тыс.рублей | D90: Х | E90: Х | F90: Х | G90: Министерство экономического развития Забайкальского края | H90: Х | I90: Х | J90: Х | K90: =K95 -> Х | L90: Х | M90: Х | N90: Х | O90: Х | P90: Х | Q90: Х | R90: =R96 -> 40315 | S90: =S95+S96 -> 4625.23 | T90: =T96 -> 46834.7 | U90: =U96 -> 20000 | V90: =V96 -> 30000 | W90: =W96 -> 20000 | X90: =X96 -> 30000 | Y90: Х | Z90: =R90+S90+T90+SUM(U90:W90)+X90 -> 191774.93
G91: Комитет планирования и развития Забайкальского края | H91: Х | I91: Х | J91: Х | K91: Х | L91: Х | M91: Х | N91: Х | O91: Х | P91: Х | Q91: Х | R91: Х | S91: =S97+S104 -> 0 | T91: =T104+T97+T99 -> 3363 | U91: =U104+U97+U99+U98 -> 8593.4 | V91: =V104+V97+V99 -> 7593.4 | W91: =W104+W97+W99 -> 7593.4 | X91: =X104+X97+X99 -> 7593.4 | Y91: Х | Z91: =T91+U91+V91+W91+X91 -> 34736.6
B92: Показатель «Обновление информации о свободных производственных площадях и земельных участках на территории Забайкальского края" | C92: количество раз в год | D92: Х | E92: Х | F92: 2014-2025 | G92: Министерство экономического развития Забайкальского края | H92: Х | I92: Х | J92: Х | K92: 1 | L92: 1 | M92: 1 | N92: 1 | O92: 1 | P92: 1 | Q92: 1 | R92: 1 | S92: Х | T92: Х | U92: Х | V92: Х | W92: Х | X92: Х | Y92: Х | Z92: Х
G93: Комитет планирования и развития Забайкальского края | H93: Х | I93: Х | J93: Х | K93: Х | L93: Х | M93: Х | N93: Х | O93: Х | P93: Х | Q93: Х | R93: Х | S93: 1 | T93: 1 | U93: 1 | V93: 1 | W93: 1 | X93: 1 | Y93: Х | Z93: Х
A94: 1.3.1. | B94: Мероприятие "Предоставление субсидий из бюджета Забайкальского края юридическим лицам (за исключением субсидий государственным (муниципальным) учреждениям) в целях поддержки инвестиционной деятельности на территории Забайкальского края в части финансового обеспечения и (или) возмещения затрат, связанных с презентацией инвестиционного потенциала края и привлечением инвестиций, в том числе на российских и международных деловых площадках" | C94: Х | E94: Х | F94: 2019-2025 | G94: Министерство экономического развития Забайкальского края, Комитет планирования и развития Забайкальского края | H94: Х | I94: Х | J94: Х | K94: Х | L94: Х | M94: Х | N94: Х | O94: Х | P94: Х | Q94: Х | R94: Х | S94: Х | T94: Х | U94: Х | V94: Х | W94: Х | X94: Х | Y94: Х | Z94: Х
B95: финансирование за счет краевого бюджета | C95: тыс.рублей | D95: Х | E95: Х | F95: Х | G95: Министерство экономического развития Забайкальского края | H95: 0412 | I95: 0310306310 | J95: 811 | K95: Х | L95: Х | M95: Х | N95: Х | O95: Х | P95: Х | Q95: Х | R95: Х | S95: 208.23 | T95: Х | U95: Х | V95: Х | W95: Х | X95: Х | Y95: Х | Z95: =S95 -> 208.23
H96: 0412 | I96: 0310306310 | J96: 813 | K96: Х | L96: Х | M96: Х | N96: Х | O96: Х | P96: Х | Q96: Х | R96: 40315 | S96: 4417 | T96: 46834.7 | U96: 20000 | V96: 30000 | W96: 20000 | X96: 30000 | Y96: Х | Z96: =R96+S96+T96+SUM(U96:W96)+X96 -> 191566.7
G97: Комитет планирования и развития Забайкальского края | H97: 0412 | I97: 0310306310 | J97: 813 | K97: Х | L97: Х | M97: Х | N97: Х | O97: Х | P97: Х | Q97: Х | R97: Х | S97: 0 | T97: 2000 | U97: 0 | V97: 6500 | W97: 6500 | X97: 6500 | Y97: Х | Z97: =SUM(S97:X97) -> 21500
H98: 0412 | I98: 03110306310 | J98: 811 | K98: Х | L98: Х | M98: Х | N98: Х | O98: Х | P98: Х | Q98: Х | R98: Х | S98: Х | T98: Х | U98: 2250 | V98: 0 | W98: 0 | X98: 0 | Y98: Х | Z98: =SUM(S98:X98) -> 2250
H99: 0412 | I99: 0310306310 | J99: 813 | K99: Х | L99: Х | M99: Х | N99: Х | O99: Х | P99: Х | Q99: Х | R99: Х | S99: 0 | T99: 0 | U99: 5250 | V99: 0 | W99: 0 | X99: 0 | Y99: Х | Z99: =SUM(S99:X99) -> 5250
B100: Показатель «Количество договоров, соглашений и протоколов о намерениях, заключенных в рамках участия в мероприятиях российских и международных деловых площадок» | C100: шт. | D100: Х | E100: Абсолютный показатель | F100: 2019-2025 | G100: Министерство экономического развития Забайкальского края | H100: Х | I100: Х | J100: Х | K100: Х | L100: Х | M100: Х | N100: Х | O100: Х | P100: Х | Q100: Х | R100: 10 | S100: 2 | T100: 10 | U100: Х | V100: Х | W100: Х | X100: Х | Y100: Х | Z100: 22
G101: Комитет планирования и развития Забайкальского края | H101: Х | I101: Х | J101: Х | K101: Х | L101: Х | M101: Х | N101: Х | O101: Х | P101: Х | Q101: Х | R101: Х | S101: Х | T101: Х | U101: 1 | V101: 1 | W101: 1 | X101: 1 | Y101: Х | Z101: 1
B102: Показатель «Количество мероприятий с участием Забайкальского края» | C102: шт. | D102: Х | E102: Абсолютный показатель | F102: 2023-2025 | G102: Комитет планирования и развития Забайкальского края | H102: Х | I102: Х | J102: Х | K102: Х | L102: Х | M102: Х | N102: Х | O102: Х | P102: Х | Q102: Х | R102: Х | S102: Х | T102: Х | U102: Х | V102: 5 | W102: 5 | X102: 5 | Y102: Х | Z102: 15
A103: 1.3.2. | B103: Мероприятие "Предоставление субсидий на финансовое обеспечение и (или) возмещение затрат в целях обеспечения работы сайта в информационно-телекоммуникационной сети "Интернет" "Забайкальский инвестиционный портал" | C103: Х | D103: Х | E103: Х | F103: 2020-2025 | G103: Комитет планирования и развития Забайкальского края | H103: Х | I103: Х | J103: Х | K103: Х | L103: Х | M103: Х | N103: Х | O103: Х | P103: Х | Q103: Х | R103: Х | S103: Х | T103: Х | U103: Х | V103: Х | W103: Х | X103: Х | Y103: Х | Z103: Х
B104: финансирование за счет краевого бюджета | C104: тыс. рублей | D104: Х | E104: Х | F104: Х | G104: Комитет планирования и развития Забайкальского края | H104: 0412 | I104: 0310306320 | J104: 813 | K104: Х | L104: Х | M104: Х | N104: Х | O104: Х | P104: Х | Q104: Х | R104: Х | S104: 0 | T104: 1363 | U104: 1093.4 | V104: 1093.4 | W104: 1093.4 | X104: 1093.4 | Y104: Х | Z104: =T104+U104+V104+W104+X104 -> 5736.6
B105: Показатель "Прирост количества посетителей сайта в информационно-телекоммуникационной сети "Интернет" "Забайкальский инвестиционный портал" | C105: % | D105: Х | E105: Qпос.отч/Qпос. отч-1 * 100, где Qпос.отч - количество посетителей сайта в отчетном периоде, Qпос. отч-1 - количество посетителей сайта в предыдущем году | F105: 2021-2025 | G105: Комитет планирования и развития Забайкальского края | H105: Х | I105: Х | J105: Х | K105: Х | L105: Х | M105: Х | N105: Х | O105: Х | P105: Х | Q105: Х | R105: Х | S105: Х | T105: 30 | U105: 30 | V105: 30 | W105: 30 | X105: 30 | Y105: Х | Z105: 30
A106: 1.4. | B106: Основное мероприятие "Развитие механизмов государственно-частного партнерства" | C106: Х | D106: 1 | E106: Х | F106: 2014-2025 | G106: Министерство экономического развития Забайкальского края, Комитет планирования и развития Забайкальского края | H106: Х | I106: Х | J106: Х | K106: Х | L106: Х | M106: Х | N106: Х | O106: Х | P106: Х | Q106: Х | R106: Х | S106: Х | T106: Х | U106: Х | V106: Х | W106: Х | X106: Х | Y106: Х | Z106: Х
B107: финансирование за счет краевого бюджета | C107: тыс.рублей | D107: Х | E107: Х | F107: Х | G107: Министерство экономического развития Забайкальского края | H107: Х | I107: Х | J107: Х | K107: Х | L107: Х | M107: Х | N107: Х | O107: Х | P107: Х | Q107: Х | R107: Х | S107: Х | T107: Х | U107: Х | V107: Х | W107: Х | X107: Х | Y107: Х | Z107: Х
G108: Комитет планирования и развития Забайкальского края | H108: 0412 | I108: 0310455050 | J108: 811 | K108: Х | L108: Х | M108: Х | N108: Х | O108: Х | P108: Х | Q108: Х | R108: Х | S108: Х | T108: Х | U108: Х | V108: Х | W108: Х | X108: Х | Y108: Х | Z108: =U108 -> Х
B109: Показатель "Количество заключенных соглашений о государственно-частном партнерстве в соответствии с федеральным законодательством (нарастающим итогом)" | C109: ед. | D109: Х | E109: Абсолютный показатель | F109: X | G109: Министерство экономического развития Забайкальского края | H109: Х | I109: Х | J109: Х | K109: Х | L109: Х | M109: 0 | N109: 0 | O109: 0 | P109: 0 | Q109: 1 | R109: 2 | S109: 0 | T109: 0 | U109: 0 | V109: 0 | W109: 0 | X109: 0 | Y109: Х | Z109: 3
G110: Комитет планирования и развития Забайкальского края | H110: Х | I110: Х | J110: Х | K110: Х | L110: Х | M110: Х | N110: Х | O110: Х | P110: Х | Q110: Х | R110: Х | S110: 1 | T110: Х | U110: Х | V110: Х | W110: Х | X110: Х | Y110: Х | Z110: Х
B111: Показатель "Количество заключенных концессионных соглашений и соглашений о государственно-частном партнерстве в соответствии с федеральным законодательством (нарастающим итогом)" | C111: ед. | D111: Х | E111: Абсолютный показатель | F111: Х | G111: Министерство экономического развития Забайкальского края | H111: Х | I111: Х | J111: Х | K111: Х | L111: Х | M111: Х | N111: Х | O111: Х | P111: Х | Q111: Х | R111: Х | S111: Х | T111: Х | U111: X | V111: X | W111: X | X111: Х | Y111: Х | Z111: X
A112: 1.5. | B112: Основное мероприятие "Создание и развитие на территории края индустриальных (промышленных) парков" | C112: Х | D112: 1 | E112: Х | F112: 2014-2025 | G112: Министерство экономического развития Забайкальского края, Комитет планирования и развития Забайкальского края | H112: Х | I112: Х | J112: Х | K112: Х | L112: Х | M112: Х | N112: Х | O112: Х | P112: Х | Q112: Х | R112: Х | S112: Х | T112: Х | U112: Х | V112: Х | W112: Х | X112: Х | Y112: Х | Z112: X
B113: финансирование за счет краевого бюджета | C113: тыс.рублей | E113: Х | F113: Х | G113: Министерство экономического развития Забайкальского края, Комитет планирования и развития Забайкальского края | H113: Х | I113: Х | J113: Х | K113: Х | L113: Х | M113: Х | N113: Х | O113: Х | P113: Х | Q113: Х | R113: Х | S113: Х | T113: Х | U113: X | V113: Х | W113: Х | X113: Х | Y113: Х | Z113: =U113 -> X
B114: Показатель "Количество резидентов индустриальных (промышленных) парков" (нарастающим итогом) | C114: ед. | D114: 1 | E114: Абсолютный показатель | G114: Комитет планирования и развития Забайкальского края | H114: Х | I114: Х | J114: Х | K114: Х | L114: Х | M114: Х | N114: Х | O114: Х | P114: Х | Q114: Х | R114: Х | S114: Х | T114: Х | U114: Х | V114: Х | W114: Х | X114: Х | Y114: Х | Z114: Х
A115: 1.6. | B115: Основное мероприятие "Содействие созданию территорий опережающего развития и особых экономических зон" | C115: Х | D115: 1 | E115: Х | F115: 2019-2025 | G115: Министерство экономического развития Забайкальского края, Комитет планирования и развития Забайкальского края | H115: Х | I115: Х | J115: Х | K115: Х | L115: Х | M115: Х | N115: Х | O115: Х | P115: Х | Q115: Х | R115: Х | S115: Х | T115: Х | U115: Х | V115: Х | W115: Х | X115: Х | Y115: Х | Z115: Х
B116: финансирование за счет краевого бюджета | C116: тыс. рублей | D116: Х | E116: Х | F116: Х | G116: Министерство экономического развития Забайкальского края | H116: Х | I116: Х | J116: Х | K116: Х | L116: Х | M116: Х | N116: Х | O116: Х | P116: Х | Q116: Х | R116: =R120 -> 6001.7 | S116: Х | T116: Х | U116: Х | V116: Х | W116: Х | X116: Х | Y116: Х | Z116: =R116 -> 6001.7
G117: Комитет планирования и развития Забайкальского края | H117: Х | I117: Х | J117: Х | K117: Х | L117: Х | M117: Х | N117: Х | O117: Х | P117: Х | Q117: Х | R117: Х | S117: =S121 -> 9824.5 | T117: 9616.1 | U117: 9621.4 | V117: 10582.6 | W117: 10641.5 | X117: 10646.9 | Y117: Х | Z117: =SUM(S117:W117)+X117 -> 60933
B118: Показатель "Количество созданных на территории Забайкальского края территорий опережающего развития и особых экономических зон" | C118: ед. | D118: X | E118: Абсолютный показатель | F118: X | G118: Министерство экономического развития Забайкальского края, Комитет планирования и развития Забайкальского края | H118: X | I118: X | J118: X | K118: X | L118: X | M118: X | N118: Х | O118: Х | P118: Х | Q118: Х | R118: 1 | S118: 1 | T118: Х | U118: Х | V118: Х | W118: Х | X118: Х | Y118: Х | Z118: 2
A119: 1.6.1. | B119: Мероприятие «Создание и обеспечение функционирования организаций, осуществляющих поддержку инвестиционной деятельности на территории Дальневосточного федерального округа» | C119: Х | D119: X | E119: Х | F119: 2019-2025 | G119: Министерство экономического развития Забайкальского края, Комитет планирования и развития Забайкальского края | H119: Х | I119: Х | J119: Х | K119: Х | L119: Х | M119: Х | N119: Х | O119: Х | P119: Х | Q119: Х | R119: Х | S119: Х | T119: Х | U119: Х | V119: Х | W119: Х | X119: Х | Y119: Х | Z119: Х
B120: финансирование за счет краевого бюджета | C120: тыс.рублей | D120: Х | E120: Х | F120: Х | G120: Министерство экономического развития Забайкальского края | H120: 0412 | I120: 0310606830 | J120: 813 | K120: Х | L120: Х | M120: Х | N120: Х | O120: Х | P120: Х | Q120: Х | R120: 6001.7 | S120: Х | T120: Х | U120: Х | V120: Х | W120: Х | X120: Х | Y120: Х | Z120: =R120 -> 6001.7
G121: Комитет планирования и развития Забайкальского края | H121: 0412 | I121: 0310606830 | J121: 813 | K121: Х | L121: Х | M121: Х | N121: Х | O121: Х | P121: Х | Q121: Х | R121: Х | S121: 9824.5 | T121: 9616.1 | U121: 9621.4 | V121: 10582.6 | W121: 10641.5 | X121: 10646.9 | Y121: Х | Z121: =SUM(S121:W121)+X121 -> 60933
B122: Показатель «Количество резидентов территорий опережающего развития Забайкальского края» | C122: ед. | D122: Х | E122: Абсолютный показатель | F122: 2019-2025 | G122: Комитет планирования и развития Забайкальского края | H122: Х | I122: Х | J122: Х | K122: Х | L122: Х | M122: Х | N122: Х | O122: Х | P122: Х | Q122: Х | R122: 10 | S122: 5 | T122: 5 | U122: 5 | V122: 5 | W122: 5 | X122: 5 | Y122: Х | Z122: =SUM(R122:X123) -> 40
Y123: Х
B124: Показатель «Уровень освоения средств, предусмотренных в бюджете Российской Федерации на создание инфраструктуры для резидентов территорий опережающего развития Забайкальского края | C124: % | D124: Х | E124: Объем средств, предусмотренный в бюджете Российской Федерации на создание инфраструктуры для резидентов территории опережающего развития «Забайкалье»/ Объем фактически освоенных средств * 100 | F124: 2019-2025 | G124: Министерство экономического развития Забайкальского края | H124: Х | I124: Х | J124: Х | K124: Х | L124: Х | M124: Х | N124: Х | O124: Х | P124: Х | Q124: Х | R124: 100 | S124: Х | T124: Х | U124: Х | V124: Х | W124: Х | X124: Х | Y124: Х | Z124: Х
G125: Комитет планирования и развития Забайкальского края | H125: Х | I125: Х | J125: Х | K125: Х | L125: Х | M125: Х | N125: Х | O125: Х | P125: Х | Q125: Х | R125: Х | S125: 100 | T125: 100 | U125: 100 | V125: 100 | W125: 100 | X125: Х | Y125: Х | Z125: Х
A126: 1.7. | B126: Основное мероприятие "Развитие инфраструктуры территорий опережающего развития в Забайкальском крае" | C126: X | D126: 1 | E126: X | F126: 2022-2025 | G126: Комитет планирования и развития Забайкальского края | H126: X | I126: X | J126: X | K126: X | M126: X | N126: X | O126: X | P126: X | Q126: X | R126: X | S126: X | T126: X | U126: X | V126: X | W126: X | X126: X | Y126: Х | Z126: X
B127: финансирование за счет краевого бюджета | C127: X | D127: X | E127: X | F127: X | G127: Комитет планирования и развития Забайкальского края | H127: X | I127: X | J127: X | K127: X | L127: X | M127: X | N127: X | O127: X | P127: X | Q127: X | R127: X | S127: X | T127: X | U127: X | V127: X | W127: X | X127: X | Y127: Х | Z127: =U127 -> X
B128: кроме того, финансирование из других источников: | C128: тыс.рублей | D128: Х | E128: Х | F128: Х | G128: Х | H128: X | I128: X | J128: X | K128: X | L128: X | M128: X | N128: X | O128: X | P128: X | Q128: X | R128: X | S128: X | T128: X | U128: 474503.9 | V128: 0 | W128: 0 | X128: 0 | Y128: Х | Z128: =SUM(K128:X128) -> 474503.9
B129: - из федерального бюджета | C129: тыс.рублей | D129: Х | E129: Х | F129: Х | G129: Х | H129: X | I129: X | J129: X | K129: X | L129: X | M129: X | N129: X | O129: X | P129: X | Q129: X | R129: X | S129: X | T129: X | U129: 474503.9 | V129: 0 | W129: 0 | X129: 0 | Y129: Х | Z129: =U129 -> 474503.9
B130: Показатель "Количество резидентов индустриальных (промышленных) парков" (нарастающим итогом) | C130: ед. | D130: Х | E130: Абсолютный показатель | F130: X | G130: Комитет планирования и развития Забайкальского края | H130: X | I130: X | J130: X | K130: X | L130: X | M130: X | N130: X | O130: X | P130: X | Q130: X | R130: X | S130: X | T130: X | U130: 0 | V130: 0 | W130: 2 | X130: 4 | Y130: Х | Z130: 4
A131: 1.7.1. | B131: Мероприятие "Предоставление субсидии из бюджета Забайкальского края обществу с ограниченной ответственностью «КРДВ Забайкалье» на развитие инфраструктуры территорий опережающего развития в Забайкальском крае" | C131: Х | D131: Х | E131: Х | F131: 2022-2025 | G131: Комитет планирования и развития Забайкальского края | H131: X | I131: X | J131: X | K131: X | L131: X | M131: X | N131: X | O131: X | P131: X | Q131: X | R131: X | S131: X | T131: X | U131: X | V131: X | W131: X | X131: X | Y131: Х | Z131: X
B132: финансирование за счет краевого бюджета | C132: Х | D132: Х | E132: Х | F132: Х | G132: Комитет планирования и развития Забайкальского края | H132: X | I132: X | J132: X | K132: X | L132: X | M132: X | N132: X | O132: X | P132: X | Q132: X | R132: X | S132: X | T132: X | U132: X | V132: X | W132: X | X132: X | Y132: Х | Z132: X
B133: Показатель "Количество объектов инфраструктуры территорий опережающего развития в Забайкальском крае, введенных в эксплуатацию" | C133: ед. | D133: Х | E133: Абсолютный показатель | F133: X | G133: Комитет планирования и развития Забайкальского края | H133: X | I133: X | J133: X | K133: X | L133: X | M133: X | N133: X | O133: X | P133: X | Q133: X | R133: X | S133: X | T133: X | U133: 0 | V133: 6 | W133: 6 | X133: 6 | Y133: Х | Z133: 6
A134: 1.8. | B134: Основное мероприятие «Обеспечение социально-экономического развития и организация продвижения инвестиционного потенциала Забайкальского края» | C134: Х | D134: 1 | E134: Х | F134: 2019 | G134: Комитет планирования и развития Забайкальского края | H134: Х | I134: Х | J134: Х | K134: Х | L134: Х | M134: Х | N134: Х | O134: Х | P134: Х | Q134: Х | R134: Х | S134: Х | T134: Х | U134: Х | V134: Х | W134: Х | X134: Х | Y134: Х | Z134: Х
B135: финансирование за счет краевого бюджета | C135: тыс. рублей | D135: Х | E135: Х | F135: Х | G135: Х | H135: Х | I135: Х | J135: Х | K135: Х | L135: Х | M135: Х | N135: Х | O135: Х | P135: Х | Q135: Х | R135: =R138 -> 12000 | S135: Х | T135: Х | U135: Х | V135: Х | W135: Х | X135: Х | Y135: Х | Z135: =SUM(K135:W135) -> 12000
B136: Показатель "Количество инвестиционных соглашений" | C136: единиц | D136: Х | E136: Абсолютный показатель | F136: Х | G136: Х | H136: Х | I136: Х | J136: Х | K136: Х | L136: Х | M136: Х | N136: Х | O136: Х | P136: Х | Q136: Х | R136: 3 | S136: Х | T136: Х | U136: Х | V136: Х | W136: Х | X136: Х | Y136: Х | Z136: Х
A137: 1.9. | B137: Мероприятие «Обеспечение социально-экономического развития и укрепление инвестиционного потенциала Забайкальского края» | C137: Х | D137: Х | E137: Х | F137: 2019 | G137: Комитет планирования и развития Забайкальского края | H137: Х | I137: Х | J137: Х | K137: Х | L137: Х | M137: Х | N137: Х | O137: Х | P137: Х | Q137: Х | R137: Х | S137: Х | T137: Х | U137: Х | V137: Х | W137: Х | X137: Х | Y137: Х | Z137: Х
B138: финансирование за счет краевого бюджета | C138: тыс. рублей | D138: Х | E138: Х | F138: Х | G138: Х | H138: 0412 | I138: 0311206850 | J138: 813 | K138: Х | L138: Х | M138: Х | N138: Х | O138: Х | P138: Х | Q138: Х | R138: 12000 | S138: Х | T138: Х | U138: Х | V138: Х | W138: Х | X138: Х | Y138: Х | Z138: =SUM(K138:W138) -> 12000
B139: Показатель "Количество инвестиционных соглашений" | C139: единиц | D139: Х | E139: Абсолютный показатель | F139: Х | G139: Х | H139: Х | I139: Х | J139: Х | K139: Х | L139: Х | M139: Х | N139: Х | O139: Х | P139: Х | Q139: Х | R139: 3 | S139: Х | T139: Х | U139: Х | V139: Х | W139: Х | X139: Х | Y139: Х | Z139: Х
B140: Задача "Стимулирование развития малого и среднего предпринимательства и потребительского рынка" | C140: Х | D140: Х | E140: Х | F140: Х | G140: Х | H140: Х | I140: Х | J140: Х | K140: Х | L140: Х | M140: Х | N140: Х | O140: Х | P140: Х | Q140: Х | R140: Х | S140: Х | T140: Х | U140: Х | V140: Х | W140: Х | X140: Х | Y140: Х | Z140: Х
A141: 2. | B141: Подпрограмма «Развитие малого и среднего предпринимательства» | C141: Х | D141: 1 | E141: Х | F141: 2014-2025 | G141: Министерство экономического развития Забайкальского края | H141: Х | I141: Х | J141: Х | K141: Х | L141: Х | M141: Х | N141: Х | O141: Х | P141: Х | Q141: Х | R141: Х | S141: Х | T141: Х | U141: Х | V141: Х | W141: Х | X141: Х | Y141: Х | Z141: Х
B142: финансирование за счет краевого бюджета | C142: тыс.рублей | D142: Х | E142: Х | F142: Х | G142: Х | H142: Х | I142: Х | J142: Х | K142: Х | L142: Х | M142: =M163+M169+M590 -> 30807.5612 | N142: =N169+36 -> 10189.53785 | O142: =O169+40 -> 5601.71379 | P142: =P169+48.4 -> 3961.13133 | Q142: =Q169+Q590 -> 34130.64924 | R142: =R169+R590+R610+R633+R715 -> 26680.67964 | S142: =S169+S590+S610+S633+S715 -> 38655.2 | T142: =T169+T590+T610+T633+T715+T737+T766 -> 14678.31632 | U142: =U169+U590+U610+U633+U715+U737+U766+U584 -> 23067.85106 | V142: =V169+V590+V610+V633+V715+V737+V766 -> 23592.3 | W142: =W169+W590+W610+W633+W715+W737+W766 -> 14190.7 | X142: =X169+X590+X610+X633+X715+X737+X766 -> 58175.1 | Y142: Х | Z142: =SUM(M142:X142) -> 283730.7404
B143: кроме того, финансирование из других источников: | C143: тыс.рублей | D143: Х | E143: Х | F143: Х | G143: Х | H143: Х | I143: Х | J143: Х | K143: Х | L143: Х | M143: =SUM(M144:M146) -> 203505.1122 | N143: 237272.6078 | O143: 76387.377 | P143: 33214.28571 | Q143: 47935.4 | R143: 730873.2 | S143: 154822.6 | T143: 104790.6 | U143: 93019.2 | V143: 101707.2 | W143: 90674.8 | X143: 0 | Y143: Х | Z143: 1874202.383
B144: - из федерального бюджета | C144: тыс.рублей | D144: Х | E144: Х | F144: Х | G144: Х | H144: Х | I144: Х | J144: Х | K144: Х | L144: Х | M144: =M171 -> 203505.1122 | N144: =N171 -> 237272.6078 | O144: =O171 -> 76387.377 | P144: =P171 -> 33214.28571 | Q144: =Q171 -> 47935.4 | R144: =R615+R639+R720 -> 730873.2 | S144: =S615+S639+S720+S171 -> 154822.6 | T144: =T615+T639+T720+T171+T741+T769 -> 104790.6 | U144: =U615+U639+U720+U171+U741+U769 -> 93019.2 | V144: =V615+V639+V720+V171+V741+V769 -> 101707.2 | W144: =W615+W639+W720+W171+W741+W769 -> 90674.8 | X144: =X615+X639+X720+X171+X741+X7599 -> 0 | Y144: 0 | Z144: =SUM(M144:X144) -> 1874202.383
B145: - из местных бюджетов | C145: тыс.рублей | D145: Х | E145: Х | F145: Х | G145: Х | H145: Х | I145: Х | J145: Х | K145: Х | L145: Х | M145: 0 | N145: 0 | O145: 0 | P145: 0 | Q145: 0 | R145: 0 | S145: 0 | T145: 0 | U145: 0 | V145: 0 | W145: 0 | X145: 0 | Y145: Х | Z145: 0
B146: - из внебюджетных источников | C146: тыс.рублей | D146: Х | E146: Х | F146: Х | G146: Х | H146: Х | I146: Х | J146: Х | K146: Х | L146: Х | M146: 0 | N146: 0 | O146: 0 | P146: 0 | Q146: 0 | R146: 0 | S146: 0 | T146: 0 | U146: 0 | V146: 0 | W146: 0 | X146: 0 | Y146: Х | Z146: =SUM(M146:W146) -> 0
B147: Показатель "Количество субъектов малого и среднего предпринимательства (включая индивидуальных предпринимателей и самозанятых) в расчете на 1 тыс. человек населения Забайкальского края" | C147: ед. | D147: 1 | E147: Абсолютный показатель | F147: Х | G147: Х | H147: Х | I147: Х | J147: Х | K147: 33.1 | L147: 29.2 | M147: 30 | N147: 31 | O147: 31 | P147: 24 | Q147: 25 | R147: 30 | S147: 26 | T147: Х | U147: Х | V147: Х | W147: Х | X147: Х | Y147: Х | Z147: Х
B148: Показатель "Численность занятых в сфере малого и среднего предпринимательства, включая индивидуальных предпринимателей и самозанятых" | C148: чел. | D148: 1 | E148: Абсолютный показатель | F148: 2019-2024 | G148: Х | H148: Х | I148: Х | J148: Х | K148: Х | L148: Х | M148: Х | N148: Х | O148: Х | P148: Х | Q148: Х | R148: 96181 | S148: 94421 | T148: 96225 | U148: 98017 | V148: 99600 | W148: 101600 | X148: 103545 | Y148: Х | Z148: =X148 -> 103545
B149: Показатель "Оборот субъектов малого и среднего предпринимательства в постоянных ценах по отношению к показателю 2014 года" | C149: % | D149: 1 | E149: Об мсп отчn/Об мсп 2014/*100/инд цен n годов, где Об мсп отчn - оборот субъектов малого и среднего предпринимательства в n году, Об мсп 2014 - оборот субъектов малого и среднего предпринимательства в 2014 году, инд цен n годов - индекс цен за период с 2014 года по n год | F149: Х | G149: Х | H149: Х | I149: Х | J149: Х | K149: Х | L149: Х | M149: 100 | N149: 80.7 | O149: 94.4 | P149: 101 | Q149: 105 | R149: 119.2 | S149: 102 | T149: 103 | U149: 104 | V149: 105 | W149: 106 | X149: Х | Y149: Х | Z149: =W149 -> 106
B150: Показатель "Оборот в расчете на одного работника субъекта малого и среднего предпринимательства в постоянных ценах по отношению к показателю 2014 года | C150: % | D150: 1 | E150: (Об мсп отчn/К-во работ МСПn)/(Об мсп 2014/к-во работ МСП 2014)*100/инд цен n годов, где Об мсп отчn - оборот субъектов малого и среднего предпринимательства в n году, К-во работ МСПn - количество работников субъектов малого и среднего предпринимательства n года, Об мсп 2014 - оборот субъектов малого и среднего предпринимательства в 2014 году, К-во работ МСП 2014 - количество работников субъектов малого и среднего предпринимательства в 2014 году, инд цен n годов - индекс цен за период с 2014 года по n год | F150: Х | G150: Х | H150: Х | I150: Х | J150: Х | K150: Х | L150: Х | M150: 100 | N150: 77.9 | O150: 102.2 | P150: 103 | Q150: 110.6 | R150: 114.1 | S150: 108 | T150: 109 | U150: 110 | V150: 111 | W150: 112 | X150: Х | Y150: Х | Z150: 112
B151: Доля обрабатывающей промышленности в обороте субъектов малого и среднего предпринимательства (без учета индивидуальных предпринимателей) | C151: % | D151: 1 | E151: Vобр пром / Vобщ *100, где V обр пром - объем оборота обрабатывающей промышленности, Vобщ - общий объем оборота | F151: Х | G151: Х | H151: Х | I151: Х | J151: Х | K151: Х | L151: Х | M151: 7.8 | N151: 6.8 | O151: 7.6 | P151: 7.6 | Q151: 8 | R151: 8.8 | S151: 15.9 | T151: 16.4 | U151: 16.9 | V151: 17.3 | W151: 17.4 | X151: Х | Y151: Х | Z151: 17.4
B152: Показатель "Доля среднесписочной численности работников (без внешних совместителей), занятых у субъектов малого и среднего предпринимательства с учетом самозанятых, в общей численности занятого населения" | C152: % | D152: 1 | E152: СрЧмсп / Чнас *100, где СрЧмсп - среднесписочная численность работников (без внешних совместителей), занятых у субъектов малого и среднего предпринимательства с учетом самозанятых, Чнас - численность занятого населения | F152: Х | G152: Х | H152: Х | I152: Х | J152: Х | K152: 22.7 | L152: 22.8 | M152: 21.5 | N152: 21.7 | O152: 22 | P152: 19.7 | Q152: 22.3 | R152: 23.5 | S152: 19.2 | T152: 20 | U152: 21 | V152: 21.7 | W152: 22.3 | X152: Х | Y152: Х | Z152: 22.3
B153: Доля кредитов субъектам малого и среднего предпринимательства в общем кредитном портфеле юридических лиц и индивидуальных предпринимателей | C153: % | D153: 1 | E153: Vкр мсп / Vобщ *100, где V кр мсп - объем кредитов субъектам малого и среднего предпринимательства, Vобщ - общий кредитный портфель юридических лиц и индивидуальных предпринимателей | F153: Х | G153: Х | H153: Х | I153: Х | J153: Х | K153: Х | L153: Х | M153: 41.3 | N153: 28.2 | O153: 20.1 | P153: 21 | Q153: 22 | R153: 24.1 | S153: 26.2 | T153: 27.1 | U153: 27.8 | V153: 28.6 | W153: 29.3 | X153: Х | Y153: Х | Z153: 29.3
B154: Показатель "Коэффициент "рождаемости" субъектов малого и среднего предпринимательства (количество созданных в отчетном периоде малых и средних предприятий на 1 тыс. действующих на дату окончания отчетного периода малых и средних предприятий)" | C154: ед. | D154: 1 | E154: Ксозд мсп/ Кмсп *1001, где V созд мсп - количество созданных в отчетном периоде малых и средних предприятий, Vобщ - количество действующих на дату окончания отчетного периода малых и средних предприятий | F154: Х | G154: Х | H154: Х | I154: Х | J154: Х | K154: Х | L154: Х | M154: 14.3 | N154: 14.5 | O154: 15 | P154: 15.2 | Q154: 15.5 | R154: 15.8 | S154: 16 | T154: 16.2 | U154: 16.4 | V154: 16.7 | W154: 16.9 | X154: Х | Y154: Х | Z154: 16.9
B155: Показатель "Доля средств, направляемых на реализацию мероприятий в сфере развития малого и среднего предпринимательства в монопрофильных муниципальных образованиях, в общем объеме финансового обеспечения государственной поддержки малого и среднего предпринимательства за счет средств бюджета края" | C155: % | D155: 1 | E155: "Р / Рс *100, где Р - расходы за счет субсидии, предоставленной в текущем финансовом году из федерального бюджета на реализацию мероприятия, Рс - размер субсидии" | F155: Х | G155: Х | H155: Х | I155: Х | J155: Х | K155: Х | L155: Х | M155: 2 | N155: 3.2 | O155: 9.4 | P155: 9 | Q155: 12.6 | R155: 10 | S155: 10 | T155: 10 | U155: Х | V155: Х | W155: Х | X155: Х | Y155: Х | Z155: 10
B156: Показатель "Количество вновь созданных рабочих мест (включая вновь зарегистрированных индивидуальных предпринимателей и самозанятых) в секторе малого и среднего предпринимательства при реализации подпрограммы " | C156: ед. | D156: 1 | E156: Абсолютный показатель | F156: Х | G156: Х | H156: Х | I156: Х | J156: Х | K156: 1222 | L156: 1478 | M156: 521 | N156: 18 (891*) | O156: 17 (59*) | P156: 29 (129*) | Q156: 154 | R156: 83 | S156: 122 | T156: 387 | U156: 400 | V156: 430 | W156: 450 | X156: 470 | Y156: Х | Z156: =521+18+891+17+59+29+129+154+83+122+387+400+430+450+470 -> 4160
B157: Показатель "Количество субъектов малого и среднего предпринимательства и самозанятых, получивших государственную поддержку" | C157: ед. | D157: 1 | E157: Абсолютный показатель | F157: Х | G157: Х | H157: Х | I157: Х | J157: Х | K157: Х | L157: 600 | M157: 399 | N157: 17 (385*) | O157: 68 (211*) | P157: 87 (775*) | Q157: 725 | R157: 317 | S157: 581 | T157: 681 | U157: 1859 | V157: 2536 | W157: 3179 | X157: 3179 | Y157: Х | Z157: =399+17+385+68+211+87+775+725+317+581+681+1859+2536+3179+3179 -> 14999
B158: Показатель "Количество вновь созданных субъектов малого и среднего предпринимательства из физических лиц, получивших государственную поддержку" | C158: чел. | D158: 1 | E158: Абсолютный показатель | F158: Х | G158: Х | H158: Х | I158: Х | J158: Х | K158: Х | L158: Х | M158: Х | N158: Х | O158: Х | P158: Х | Q158: Х | R158: Х | S158: Х | T158: 322 | U158: 340 | V158: 360 | W158: 380 | X158: Х | Y158: Х | Z158: =SUM(M158:W158) -> 1402
B159: Показатель "Оборот розничной торговли на душу населения" | C159: тыс.рублей | D159: 1 | E159: О=Орт/Ч, где О-оборот розничной торговли на душу населения, Орт- оборот розничной торговли за год, млн. рублей, Ч - численность населения (среднегодовая), тыс. человек | F159: Х | G159: Х | H159: Х | I159: Х | J159: Х | K159: 105.9 | L159: 116.1 | M159: 124.9 | N159: 135.4 | O159: 143 | P159: 149.8 | Q159: 158.5 | R159: 162.3 | S159: 171.9 | T159: 175.7 | U159: 188.2 | V159: 225.4 | W159: 246.4 | X159: 261.3 | Y159: Х | Z159: 261.3
B160: Показатель "Оборот общественного питания на душу населения" | C160: тыс.рублей | D160: 1 | E160: О=Ооп/Ч, где О-оборот общественного питания на душу населения, Ооп- оборот общественного питания за год, млн. рублей, Ч - численность населения (среднегодовая), тыс. человек | F160: Х | G160: Х | H160: Х | I160: Х | J160: Х | K160: 6.2 | L160: 6.8 | M160: 7.1 | N160: 7.5 | O160: 7.7 | P160: 7.7 | Q160: 8.1 | R160: 8.7 | S160: 9.2 | T160: 8.7 | U160: 10.4 | V160: 11.1 | W160: 11.9 | X160: 13 | Y160: Х | Z160: 13
B161: Показатель "Объем бытовых услуг на душу населения" | C161: тыс.рублей | D161: 1 | E161: О=Ооп/Ч, где О-объем бытовых услуг на душу населения, Орт- объем бытовых услуг за год, млн. рублей, Ч - численность населения (среднегодовая), тыс. человек | F161: Х | G161: Х | H161: Х | I161: Х | J161: Х | K161: 2.1 | L161: 2.6 | M161: 3 | N161: 3 | O161: 3.2 | P161: 3.3 | Q161: 3.5 | R161: 3.5 | S161: 3.6 | T161: 3.8 | U161: 4.1 | V161: 4.3 | W161: 4.6 | X161: 5.2 | Y161: Х | Z161: 5.2
A162: 2.1. | B162: Основное мероприятие "Информационно-аналитическая и организационная поддержка субъектов малого и среднего предпринимательства" | C162: Х | D162: 1 | E162: Х | F162: 2014 | G162: Министерство экономического развития Забайкальского края | H162: Х | I162: Х | J162: Х | K162: Х | L162: Х | M162: Х | N162: Х | O162: Х | P162: Х | Q162: Х | R162: Х | S162: Х | T162: Х | U162: Х | V162: Х | W162: Х | X162: Х | Y162: Х | Z162: Х
B163: финансирование за счет краевого бюджета | C163: тыс.рублей | D163: Х | E163: Х | F163: Х | G163: Х | H163: Х | I163: Х | J163: Х | K163: Х | L163: Х | M163: 180 | N163: Х | O163: Х | P163: Х | Q163: Х | R163: Х | S163: Х | T163: Х | U163: Х | V163: Х | W163: Х | X163: Х | Y163: Х | Z163: =SUM(M163:X163) -> 180
B164: Показатель "Количество обученных" | C164: чел. | D164: Х | E164: Абсолютный показатель | F164: Х | G164: Х | H164: Х | I164: Х | J164: Х | K164: Х | L164: Х | M164: 9 | N164: Х | O164: Х | P164: Х | Q164: Х | R164: Х | S164: Х | T164: Х | U164: Х | V164: Х | W164: Х | X164: Х | Y164: Х | Z164: =SUM(M164:W164) -> 9
A165: 2.1.1. | B165: Мероприятие "Организация подготовки управленческих кадров для субъектов малого и среднего предпринимательства (реализация "Губернаторской программы подготовки управленческих кадров для субъектов малого и среднего предпринимательства)" | C165: тыс.рублей | D165: Х | E165: Х | F165: 2014 | G165: Министерство экономического развития Забайкальского края | H165: Х | I165: Х | J165: Х | K165: Х | L165: Х | M165: Х | N165: Х | O165: Х | P165: Х | Q165: Х | R165: Х | S165: Х | T165: Х | U165: Х | V165: Х | W165: Х | X165: Х | Y165: Х | Z165: Х
B166: финансирование за счет краевого бюджета | C166: тыс.рублей | D166: Х | E166: Х | F166: Х | G166: Х | H166: Х | I166: Х | J166: Х | K166: Х | L166: Х | M166: 180 | N166: Х | O166: Х | P166: Х | Q166: Х | R166: Х | S166: Х | T166: Х | U166: Х | V166: Х | W166: Х | X166: Х | Y166: Х | Z166: =SUM(M166:X166) -> 180
B167: Показатель "Количество обученных" | C167: чел. | D167: Х | E167: Абсолютный показатель | F167: Х | G167: Х | H167: Х | I167: Х | J167: Х | K167: Х | L167: Х | M167: 9 | N167: Х | O167: Х | P167: Х | Q167: Х | R167: Х | S167: Х | T167: Х | U167: Х | V167: Х | W167: Х | X167: Х | Y167: Х | Z167: =SUM(M167:W167) -> 9
A168: 2.2. | B168: Основное мероприятие "Финансовая поддержка субъектов малого и среднего предпринимательства, самозанятых и организаций, образующих инфраструктуру поддержки малого и среднего предпринимательства" | C168: Х | D168: 1 | E168: Х | F168: 2014-2025 | G168: Министерство экономического развития Забайкальского края | H168: Х | I168: Х | J168: Х | K168: Х | L168: Х | M168: Х | N168: Х | O168: Х | P168: Х | Q168: Х | R168: Х | S168: Х | T168: Х | U168: Х | V168: Х | W168: Х | X168: Х | Y168: Х | Z168: Х
B169: финансирование за счет краевого бюджета | C169: тыс.рублей | D169: Х | E169: Х | F169: Х | G169: Х | H169: Х | I169: Х | J169: Х | K169: Х | L169: Х | M169: =M174+M526 -> 30578.5612 | N169: =N174+N526 -> 10153.53785 | O169: =O174+O527 -> 5561.71379 | P169: =P174+P528 -> 3912.73133 | Q169: =Q174+Q528+Q576 -> 34080.64949 | R169: =R174+R525+R579 -> 11715 | S169: =S174+S525+S579 -> 35548.8 | T169: =T525+T579 -> 12872.4 | U169: =U525+U579 -> 15961.6 | V169: =V525+V579 -> 21416.4 | W169: =W525+W579 -> 12240.1 | X169: =X525+X579 -> 55818.8 | Y169: Х | Z169: =SUM(M169:X169) -> 249860.2937
B170: кроме того, финансирование из других источников: | C170: тыс.рублей | D170: Х | E170: Х | F170: Х | G170: Х | H170: Х | I170: Х | J170: Х | K170: Х | L170: Х | M170: =SUM(M171) -> 203505.1122 | N170: 237272.6078 | O170: 76387.377 | P170: 33214.28571 | Q170: 47935.4 | R170: 0 | S170: 6666.4 | T170: 0 | U170: 0 | V170: 0 | W170: 0 | X170: 0 | Y170: Х | Z170: 604981.1827
B171: - из федерального бюджета | C171: тыс.рублей | D171: Х | E171: Х | F171: Х | G171: Х | H171: Х | I171: Х | J171: Х | K171: Х | L171: Х | M171: =M189 -> 203505.1122 | N171: =N189 -> 237272.6078 | O171: =O189 -> 76387.377 | P171: =P189 -> 33214.28571 | Q171: =Q189 -> 47935.4 | R171: 0 | S171: =S198 -> 6666.4 | T171: 0 | U171: 0 | V171: 0 | W171: 0 | X171: 0 | Y171: Х | Z171: =SUM(M171:X171) -> 604981.1827
B172: Показатель "Количество субъектов малого и среднего предпринимательства и самозанятых, получивших государственную поддержку" | C172: ед. | D172: Х | E172: Абсолютный показатель | F172: Х | G172: Х | H172: Х | I172: Х | J172: Х | K172: Х | L172: 600 | M172: 76 (348*) | N172: 17 (385*) | O172: 68 (211*) | P172: 87 (775*) | Q172: 725 | R172: 1252 | S172: 972 | T172: 581 | U172: 1859 | V172: 2536 | W172: 3179 | X172: 3179 | Y172: Х | Z172: =76+348+17+385+68+211+87+775+725+SUM(R172:W172)+3179 -> 16250
A173: 2.2.1. | B173: Мероприятие "Софинансирование расходов на государственную поддержку малого и среднего предпринимательства, включая крестьянские (фермерские) хозяйства" | C173: Х | D173: 1 | E173: Х | F173: 2014-2020 | G173: Министерство экономического развития Забайкальского края | H173: Х | I173: Х | J173: Х | K173: Х | L173: Х | M173: Х | N173: Х | O173: Х | P173: Х | Q173: Х | R173: Х | S173: Х | T173: Х | U173: Х | V173: Х | W173: Х | X173: Х | Y173: Х | Z173: Х
B174: финансирование за счет краевого бюджета | C174: тыс.рублей | D174: Х | E174: Х | F174: Х | H174: ВСЕГО | I174: Х | J174: Х | K174: Х | L174: Х | M174: =M175+M176+M177+M178+M179 -> 29961.5612 | N174: =N175+N176+N177+N178 -> 9113.53785 | O174: =O180+O181+O182 -> 4561.71379 | P174: =P184+P185+P186 -> 2625.73533 | Q174: =Q184+Q185+Q183+Q187 -> 3080.64949 | R174: 0 | S174: =S188 -> 425.5 | T174: Х | U174: Х | V174: Х | W174: Х | X174: Х | Y174: Х | Z174: =SUM(M174:W174) -> 49768.69766
H175: 0412 | I175: 5228101 | J175: 521 | K175: Х | L175: Х | M175: 1000 | N175: 200 | O175: 0 | P175: 0 | Q175: 0 | R175: 0 | S175: 0 | T175: Х | U175: Х | V175: Х | W175: Х | X175: Х | Y175: Х | Z175: =SUM(M175:S175) -> 1200
H176: 0412 | I176: 5228101 | J176: 810 | K176: Х | L176: Х | M176: 25661.5612 | N176: 7663.53785 | O176: 0 | P176: 0 | Q176: 0 | R176: 0 | S176: 0 | T176: Х | U176: Х | V176: Х | W176: Х | X176: Х | Y176: Х | Z176: 33325.09905
H177: 0412 | I177: 5228102 | J177: 521 | K177: Х | L177: Х | M177: 300 | N177: 125 | O177: 0 | P177: 0 | Q177: 0 | R177: 0 | S177: 0 | T177: Х | U177: Х | V177: Х | W177: Х | X177: Х | Y177: Х | Z177: 425
H178: 0412 | I178: 5228102 | J178: 810 | K178: Х | L178: Х | M178: 2700 | N178: 1125 | O178: 0 | P178: 0 | Q178: 0 | R178: 0 | S178: 0 | T178: Х | U178: Х | V178: Х | W178: Х | X178: Х | Y178: Х | Z178: 3825
H179: 0412 | I179: 5228103 | J179: 810 | K179: Х | L179: Х | M179: 300 | N179: 0 | O179: 0 | P179: 0 | Q179: 0 | R179: 0 | S179: 0 | T179: Х | U179: Х | V179: Х | W179: Х | X179: Х | Y179: Х | Z179: 300
H180: 0412 | I180: 03202R0640 | J180: 521 | K180: Х | L180: Х | M180: 0 | N180: 0 | O180: 409.211 | P180: 0 | Q180: 0 | R180: 0 | S180: 0 | T180: Х | U180: Х | V180: Х | W180: Х | X180: Х | Y180: Х | Z180: 409.211
H181: 0412 | I181: 03202R0640 | J181: 810 | K181: Х | L181: Х | M181: 0 | N181: 0 | O181: =3402.50279 -> 3402.50279 | P181: 0 | Q181: 0 | R181: 0 | S181: 0 | T181: Х | U181: Х | V181: Х | W181: Х | X181: Х | Y181: Х | Z181: 3402.50279
H182: 0412 | I182: 03202R4450 | J182: 810 | K182: Х | L182: Х | M182: 0 | N182: 0 | O182: 750 | P182: 0 | Q182: 0 | R182: 0 | S182: 0 | T182: Х | U182: Х | V182: Х | W182: Х | X182: Х | Y182: Х | Z182: 750
H183: 0412 | I183: 03202R5270 | J183: 632 | K183: Х | L183: Х | M183: 0 | N183: 0 | O183: Х | P183: 0 | Q183: 1053.01277 | R183: 0 | S183: 0 | T183: Х | U183: Х | V183: Х | W183: Х | X183: Х | Y183: Х | Z183: 1053.01277
H184: 0412 | I184: 03202R5270 | J184: 812 | K184: Х | L184: Х | M184: 0 | N184: 0 | O184: Х | P184: 2274.19355 | Q184: 1539.04469 | R184: 0 | S184: 0 | T184: Х | U184: Х | V184: Х | W184: Х | X184: Х | Y184: Х | Z184: 3813.23824
H185: 0412 | I185: 03202R5270 | J185: 521 | K185: Х | L185: Х | M185: 0 | N185: 0 | O185: Х | P185: 225.80646 | Q185: 467.64895 | R185: 0 | S185: 0 | T185: Х | U185: Х | V185: Х | W185: Х | X185: Х | Y185: Х | Z185: 693.45541
H186: 0412 | I186: 0320200270 | J186: 853 | K186: Х | L186: Х | M186: 0 | N186: 0 | O186: Х | P186: 125.73532 | Q186: 0 | R186: 0 | S186: 0 | T186: Х | U186: Х | V186: Х | W186: Х | X186: Х | Y186: Х | Z186: 125.73532
H187: 0412 | I187: 0320206270 | J187: 853 | K187: Х | L187: Х | M187: 0 | N187: 0 | O187: Х | P187: 0 | Q187: 20.94308 | R187: 0 | S187: 0 | T187: Х | U187: Х | V187: Х | W187: Х | X187: Х | Y187: Х | Z187: 20.94308
H188: 0412 | I188: 03202R8310 | J188: 633 | K188: Х | L188: Х | M188: 0 | N188: 0 | O188: Х | P188: 0 | Q188: 0 | R188: 0 | S188: =S520 -> 425.5 | T188: Х | U188: Х | V188: Х | W188: Х | X188: Х | Y188: Х | Z188: 425.5
B189: кроме того, финансирование из других источников: | C189: тыс.рублей | D189: Х | E189: Х | F189: Х | G189: Х | H189: Х | I189: Х | J189: Х | K189: Х | L189: Х | M189: =M190+M191 -> 203505.1122 | N189: =N190+N191 -> 237272.6078 | O189: =O192+O193+O194 -> 76387.377 | P189: =P196+P197 -> 33214.28571 | Q189: =Q195+Q196+Q197 -> 47935.4 | R189: 0 | S189: =S198 -> 6666.4 | T189: Х | U189: Х | V189: Х | W189: Х | X189: Х | Y189: Х | Z189: 604981.1827
B190: - из федерального бюджета | C190: тыс.рублей | D190: Х | E190: Х | F190: Х | G190: Х | H190: 0412 | I190: 3455064 | J190: 521 | K190: Х | L190: Х | M190: 5200 | N190: 11375 | O190: Х | P190: 0 | Q190: 0 | R190: 0 | S190: 0 | T190: Х | U190: Х | V190: Х | W190: Х | X190: Х | Y190: Х | Z190: 16575
H191: 0412 | I191: 3455064 | J191: 810 | K191: Х | L191: Х | M191: 198305.1122 | N191: 225897.6078 | O191: Х | P191: 0 | Q191: 0 | R191: 0 | S191: 0 | T191: Х | U191: Х | V191: Х | W191: Х | X191: Х | Y191: Х | Z191: 424202.72
H192: 0412 | I192: 0320250640 | J192: 521 | K192: Х | L192: Х | M192: 0 | N192: 0 | O192: 7775 | P192: 0 | Q192: 0 | R192: 0 | S192: 0 | T192: Х | U192: Х | V192: Х | W192: Х | X192: Х | Y192: Х | Z192: 7775
H193: 0412 | I193: 0320250640 | J193: 810 | K193: Х | L193: Х | M193: 0 | N193: 0 | O193: 64647.543 | P193: 0 | Q193: 0 | R193: 0 | S193: 0 | T193: Х | U193: Х | V193: Х | W193: Х | X193: Х | Y193: Х | Z193: 64647.543
H194: 0412 | I194: 0320254450 | J194: 810 | K194: Х | L194: Х | M194: 0 | N194: 0 | O194: 3964.834 | P194: 0 | Q194: 0 | R194: 0 | S194: 0 | T194: Х | U194: Х | V194: Х | W194: Х | X194: Х | Y194: Х | Z194: 3964.834
H195: 0412 | I195: 03202R5270 | J195: 632 | K195: Х | L195: Х | M195: 0 | N195: 0 | O195: 0 | P195: 0 | Q195: 16497.2 | R195: 0 | S195: 0 | T195: Х | U195: Х | V195: Х | W195: Х | X195: Х | Y195: Х | Z195: 16497.2
H196: 0412 | I196: 03202R5270 | J196: 812 | K196: Х | L196: Х | M196: 0 | N196: 0 | O196: 0 | P196: 30214.28571 | Q196: 24111.7 | R196: 0 | S196: 0 | T196: Х | U196: Х | V196: Х | W196: Х | X196: Х | Y196: Х | Z196: 54325.98571
H197: 0412 | I197: 03202R5270 | J197: 521 | K197: Х | L197: Х | M197: 0 | N197: 0 | O197: 0 | P197: 3000 | Q197: 7326.5 | R197: 0 | S197: 0 | T197: Х | U197: Х | V197: Х | W197: Х | X197: Х | Y197: Х | Z197: 10326.5
H198: 0412 | I198: 03202R8310 | J198: 633 | K198: Х | L198: Х | M198: 0 | N198: 0 | O198: 0 | P198: 0 | Q198: 0 | R198: 0 | S198: =S522 -> 6666.4 | T198: Х | U198: Х | V198: Х | W198: Х | X198: Х | Y198: Х | Z198: 6666.4
B199: Показатель "Количество субъектов малого и среднего предпринимательства, получивших государственную поддержку" | C199: ед. | D199: Х | E199: Абсолютный показатель | F199: 2014-2018 | G199: Х | H199: Х | I199: Х | J199: Х | K199: Х | L199: 600 | M199: 76 (348*) | N199: 17 (385*) | O199: 48 (211*) | P199: 25(145*) | Q199: 703 | R199: Х | S199: Х | T199: Х | U199: Х | V199: Х | W199: Х | X199: Х | Y199: Х | Z199: =76+348+17+385+48+211+25+145+703 -> 1958
B200: Создание и (или) развитие инфраструктуры поддержки субъектов малого и среднего предпринимательства, направленной на содействие развитию систем кредитования - ВСЕГО | C200: Х | D200: Х | E200: Х | F200: 2015-2018 | G200: Х | H200: Х | I200: Х | J200: Х | K200: Х | L200: Х | M200: Х | N200: Х | O200: Х | P200: Х | Q200: Х | R200: Х | S200: Х | T200: Х | U200: Х | V200: Х | W200: Х | X200: Х | Y200: Х | Z200: Х
B201: финансирование за счет краевого бюджета | C201: тыс.рублей | D201: Х | E201: Х | F201: Х | G201: Х | H201: Х | I201: Х | J201: Х | K201: Х | L201: Х | M201: Х | N201: 1000 | O201: 500 | P201: 1336.00763 | Q201: 773.5 | R201: Х | S201: Х | T201: Х | U201: Х | V201: Х | W201: Х | X201: Х | Y201: Х | Z201: =SUM(N201:W201) -> 3609.50763
B202: кроме того, финансирование из других источников: | C202: тыс.рублей | D202: Х | E202: Х | F202: Х | G202: Х | H202: Х | I202: Х | J202: Х | K202: Х | L202: Х | M202: Х | N202: =SUM(N203) -> 19000 | O202: =SUM(O203) -> 9500 | P202: =SUM(P203) -> 17749.81563 | Q202: =SUM(Q203) -> 12117.3 | R202: Х | S202: Х | T202: Х | U202: Х | V202: Х | W202: Х | X202: Х | Y202: Х | Z202: =SUM(N202:W202) -> 58367.11563
B203: - из федерального бюджета | C203: тыс.рублей | D203: Х | E203: Х | F203: Х | G203: Х | H203: Х | I203: Х | J203: Х | K203: Х | L203: Х | M203: Х | N203: 19000 | O203: 9500 | P203: 17749.81563 | Q203: 12117.3 | R203: Х | S203: Х | T203: Х | U203: Х | V203: Х | W203: Х | X203: Х | Y203: Х | Z203: =SUM(M203:W203) -> 58367.11563
... 924 more rows
